Organisation Name,Organisation Code,Directorate/Service,Service Category Label,Service Code,Supplier Name,Supplier Reference,Payment Date,Transaction Number,Net Payments,Purpose of Spend
North West Leicestershire District Council,31UH,Housing Repairs,HRA Housing Repairs & Maintenance,HRAHRM,Orbis Property Protection Ltd,A028149,25/05/2022,1424630,2502.85,Contract Cleaning
North West Leicestershire District Council,31UH,Housing Repairs,HRA Housing Repairs & Maintenance,HRAHRM,Laker BMS Ltd,A031787,25/05/2022,1424631,1639.00,Contract Payments (Dws) Ext
North West Leicestershire District Council,31UH,Housing Repairs,HRA Housing Repairs & Maintenance,HRAHRM,John Merison BMC Ltd,A001092,25/05/2022,1424635,1635.10,Contract Payments (Dws) Ext
North West Leicestershire District Council,31UH,Housing Repairs,HRA Housing Repairs & Maintenance,HRAHRM,John Merison BMC Ltd,A001092,25/05/2022,1424637,2271.18,Contract Payments (Dws) Ext
North West Leicestershire District Council,31UH,Housing Repairs,HRA Housing Repairs & Maintenance,HRAHRM,Emperor Scaffolding Limited,A038405,30/05/2022,1424704,1610.00,General Materials
North West Leicestershire District Council,31UH,Housing Repairs,HRA Housing Repairs & Maintenance,HRAHRM,Emperor Scaffolding Limited,A038405,30/05/2022,1424705,660.00,General Materials
North West Leicestershire District Council,31UH,Housing Repairs,HRA Housing Repairs & Maintenance,HRAHRM,John Merison BMC Ltd,A001092,30/05/2022,1424706,2655.62,Contract Payments (Dws) Ext
North West Leicestershire District Council,31UH,Housing Repairs,HRA Housing Repairs & Maintenance,HRAHRM,John Merison BMC Ltd,A001092,30/05/2022,1424707,1429.60,Contract Payments (Dws) Ext
North West Leicestershire District Council,31UH,Housing Repairs,HRA Housing Repairs & Maintenance,HRAHRM,Geze Uk Limited,A023130,30/05/2022,1424711,390.00,Lift maintenance
North West Leicestershire District Council,31UH,Housing Repairs,HRA Housing Repairs & Maintenance,HRAHRM,John Merison BMC Ltd,A001092,30/05/2022,1424712,1489.34,Contract Payments (Dws) Ext
North West Leicestershire District Council,31UH,Housing Repairs,HRA Housing Repairs & Maintenance,HRAHRM,John Merison BMC Ltd,A001092,30/05/2022,1424713,1942.06,Contract Payments (Dws) Ext
North West Leicestershire District Council,31UH,Housing Repairs,HRA Housing Repairs & Maintenance,HRAHRM,Emperor Scaffolding Limited,A038405,30/05/2022,1424714,660.00,General Materials
North West Leicestershire District Council,31UH,Housing Repairs,HRA Housing Repairs & Maintenance,HRAHRM,Laker BMS Ltd,A031787,30/05/2022,1424715,7486.00,Contract Payments (Dws) Ext
North West Leicestershire District Council,31UH,Housing Repairs,HRA Housing Repairs & Maintenance,HRAHRM,Emperor Scaffolding Limited,A038405,30/05/2022,1424716,660.00,General Materials
North West Leicestershire District Council,31UH,Housing Repairs,HRA Housing Repairs & Maintenance,HRAHRM,Geze Uk Limited,A023130,30/05/2022,1424717,390.08,Lift maintenance
North West Leicestershire District Council,31UH,Housing Repairs,HRA Housing Repairs & Maintenance,HRAHRM,John Merison BMC Ltd,A001092,30/05/2022,1424718,5418.00,Contract Payments (Dws) Ext
North West Leicestershire District Council,31UH,Housing Repairs,HRA Housing Repairs & Maintenance,HRAHRM,John Merison BMC Ltd,A001092,30/05/2022,1424719,1899.95,Contract Payments (Dws) Ext
North West Leicestershire District Council,31UH,Housing Repairs,HRA Housing Repairs & Maintenance,HRAHRM,Severn Trent Water Limited,A001468,30/05/2022,1424720,1013.29,Sewerage & Environmental
North West Leicestershire District Council,31UH,Housing Repairs,HRA Housing Repairs & Maintenance,HRAHRM,Laker BMS Ltd,A031787,30/05/2022,1424721,596.00,Contract Payments (Dws) Ext
North West Leicestershire District Council,31UH,Housing Repairs,HRA Housing Repairs & Maintenance,HRAHRM,Emperor Scaffolding Limited,A038405,30/05/2022,1424722,1045.00,General Materials
North West Leicestershire District Council,31UH,Housing Repairs,HRA Housing Repairs & Maintenance,HRAHRM,Emperor Scaffolding Limited,A038405,30/05/2022,1424723,375.00,General Materials
North West Leicestershire District Council,31UH,Housing Repairs,HRA Housing Repairs & Maintenance,HRAHRM,John Merison BMC Ltd,A001092,30/05/2022,1424724,3978.00,Contract Payments (Dws) Ext
North West Leicestershire District Council,31UH,Housing Repairs,HRA Housing Repairs & Maintenance,HRAHRM,John Merison BMC Ltd,A001092,30/05/2022,1424725,1170.00,Contract Payments (Dws) Ext
North West Leicestershire District Council,31UH,Housing Repairs,HRA Housing Repairs & Maintenance,HRAHRM,Emperor Scaffolding Limited,A038405,04/05/2022,1423591,1480.00,General Materials
North West Leicestershire District Council,31UH,Housing Repairs,HRA Housing Repairs & Maintenance,HRAHRM,Orbis Property Protection Ltd,A028149,04/05/2022,1423592,1084.86,Contract Cleaning
North West Leicestershire District Council,31UH,Housing Repairs,HRA Housing Repairs & Maintenance,HRAHRM,Emperor Scaffolding Limited,A038405,04/05/2022,1423594,375.00,General Materials
North West Leicestershire District Council,31UH,Housing Repairs,HRA Housing Repairs & Maintenance,HRAHRM,Emperor Scaffolding Limited,A038405,04/05/2022,1423595,300.00,General Materials
North West Leicestershire District Council,31UH,Housing Repairs,HRA Housing Repairs & Maintenance,HRAHRM,Emperor Scaffolding Limited,A038405,04/05/2022,1423598,1800.00,General Materials
North West Leicestershire District Council,31UH,Housing Repairs,HRA Housing Repairs & Maintenance,HRAHRM,Emperor Scaffolding Limited,A038405,04/05/2022,1423599,1720.00,General Materials
North West Leicestershire District Council,31UH,Housing Repairs,HRA Housing Repairs & Maintenance,HRAHRM,Orbis Property Protection Ltd,A028149,04/05/2022,1423600,317.01,Contract Cleaning
North West Leicestershire District Council,31UH,Housing Repairs,HRA Housing Repairs & Maintenance,HRAHRM,Emperor Scaffolding Limited,A038405,04/05/2022,1423601,395.00,General Materials
North West Leicestershire District Council,31UH,Housing Repairs,HRA Housing Repairs & Maintenance,HRAHRM,Emperor Scaffolding Limited,A038405,04/05/2022,1423603,445.00,General Materials
North West Leicestershire District Council,31UH,Housing Repairs,HRA Housing Repairs & Maintenance,HRAHRM,Emperor Scaffolding Limited,A038405,04/05/2022,1423605,1680.00,General Materials
North West Leicestershire District Council,31UH,Housing Repairs,HRA Housing Repairs & Maintenance,HRAHRM,Emperor Scaffolding Limited,A038405,04/05/2022,1423606,2360.00,General Materials
North West Leicestershire District Council,31UH,Housing Repairs,HRA Housing Repairs & Maintenance,HRAHRM,Orbis Property Protection Ltd,A028149,04/05/2022,1423607,381.57,Contract Cleaning
North West Leicestershire District Council,31UH,Housing Repairs,HRA Housing Repairs & Maintenance,HRAHRM,Emperor Scaffolding Limited,A038405,04/05/2022,1423609,420.00,General Materials
North West Leicestershire District Council,31UH,Housing Repairs,HRA Housing Repairs & Maintenance,HRAHRM,Emperor Scaffolding Limited,A038405,04/05/2022,1423610,660.00,General Materials
North West Leicestershire District Council,31UH,Housing Repairs,HRA Housing Repairs & Maintenance,HRAHRM,Emperor Scaffolding Limited,A038405,04/05/2022,1423612,450.00,General Materials
North West Leicestershire District Council,31UH,Housing Repairs,HRA Housing Repairs & Maintenance,HRAHRM,Emperor Scaffolding Limited,A038405,04/05/2022,1423615,750.00,General Materials
North West Leicestershire District Council,31UH,Housing Repairs,HRA Housing Repairs & Maintenance,HRAHRM,Emperor Scaffolding Limited,A038405,04/05/2022,1423616,1710.00,General Materials
North West Leicestershire District Council,31UH,Housing Repairs,HRA Housing Repairs & Maintenance,HRAHRM,Emperor Scaffolding Limited,A038405,04/05/2022,1423617,395.00,General Materials
North West Leicestershire District Council,31UH,Housing Repairs,HRA Housing Repairs & Maintenance,HRAHRM,Timber-Link Fencing Ltd,A033297,11/05/2022,1423892,714.00,External Contractor Payments
North West Leicestershire District Council,31UH,Housing Repairs,HRA Housing Repairs & Maintenance,HRAHRM,Timber-Link Fencing Ltd,A033297,11/05/2022,1423893,1748.00,External Contractor Payments
North West Leicestershire District Council,31UH,Housing Repairs,HRA Housing Repairs & Maintenance,HRAHRM,Timber-Link Fencing Ltd,A033297,11/05/2022,1423894,861.00,External Contractor Payments
North West Leicestershire District Council,31UH,Housing Repairs,HRA Housing Repairs & Maintenance,HRAHRM,Timber-Link Fencing Ltd,A033297,11/05/2022,1423895,2958.00,External Contractor Payments
North West Leicestershire District Council,31UH,Housing Repairs,HRA Housing Repairs & Maintenance,HRAHRM,Timber-Link Fencing Ltd,A033297,11/05/2022,1423896,4500.00,External Contractor Payments
North West Leicestershire District Council,31UH,Housing Repairs,HRA Housing Repairs & Maintenance,HRAHRM,Timber-Link Fencing Ltd,A033297,11/05/2022,1423897,2850.00,External Contractor Payments
North West Leicestershire District Council,31UH,Housing Repairs,HRA Housing Repairs & Maintenance,HRAHRM,Laker BMS Ltd,A031787,11/05/2022,1424017,1214.00,Contract Payments (Dws) Ext
North West Leicestershire District Council,31UH,Housing Repairs,HRA Housing Repairs & Maintenance,HRAHRM,Laker BMS Ltd,A031787,11/05/2022,1424018,5366.00,Contract Payments (Dws) Ext
North West Leicestershire District Council,31UH,Housing Repairs,HRA Housing Repairs & Maintenance,HRAHRM,Laker BMS Ltd,A031787,11/05/2022,1424019,320.00,Contract Payments (Dws) Ext
North West Leicestershire District Council,31UH,Housing Repairs,HRA Housing Repairs & Maintenance,HRAHRM,John Merison BMC Ltd,A001092,11/05/2022,1424020,2388.34,Contract Payments (Dws) Ext
North West Leicestershire District Council,31UH,Housing Repairs,HRA Housing Repairs & Maintenance,HRAHRM,Laker BMS Ltd,A031787,11/05/2022,1424022,5939.83,Contract Payments (Dws) Ext
North West Leicestershire District Council,31UH,Housing Repairs,HRA Housing Repairs & Maintenance,HRAHRM,Laker BMS Ltd,A031787,11/05/2022,1424023,3577.83,Contract Payments (Dws) Ext
North West Leicestershire District Council,31UH,Housing Repairs,HRA Housing Repairs & Maintenance,HRAHRM,Emperor Scaffolding Limited,A038405,11/05/2022,1424024,1000.00,General Materials
North West Leicestershire District Council,31UH,Housing Repairs,HRA Housing Repairs & Maintenance,HRAHRM,Laker BMS Ltd,A031787,11/05/2022,1424026,521.50,Contract Payments (Dws) Ext
North West Leicestershire District Council,31UH,Housing Repairs,HRA Housing Repairs & Maintenance,HRAHRM,Laker BMS Ltd,A031787,11/05/2022,1424027,5846.26,Contract Payments (Dws) Ext
North West Leicestershire District Council,31UH,Housing Repairs,HRA Housing Repairs & Maintenance,HRAHRM,Laker BMS Ltd,A031787,11/05/2022,1424028,5513.21,Contract Payments (Dws) Ext
North West Leicestershire District Council,31UH,Housing Repairs,HRA Housing Repairs & Maintenance,HRAHRM,Premier Mobility UK Ltd,A045304,11/05/2022,1424029,345.11,Plumbing & Heating
North West Leicestershire District Council,31UH,Housing Repairs,HRA Housing Repairs & Maintenance,HRAHRM,Laker BMS Ltd,A031787,11/05/2022,1424031,5139.07,Contract Payments (Dws) Ext
North West Leicestershire District Council,31UH,Housing Repairs,HRA Housing Repairs & Maintenance,HRAHRM,Laker BMS Ltd,A031787,11/05/2022,1424032,6011.24,Contract Payments (Dws) Ext
North West Leicestershire District Council,31UH,Housing Repairs,HRA Housing Repairs & Maintenance,HRAHRM,Emperor Scaffolding Limited,A038405,11/05/2022,1424033,920.00,General Materials
North West Leicestershire District Council,31UH,Housing Repairs,HRA Housing Repairs & Maintenance,HRAHRM,Premier Mobility UK Ltd,A045304,11/05/2022,1424034,5670.50,Contract Payments (Dws) Ext
North West Leicestershire District Council,31UH,Street Management,Environment - Street Scene,ESS,Nisbets Plc,A007087,04/05/2022,1423753,399.92,Contract Payments (Other) Ext
North West Leicestershire District Council,31UH,Property Services,Property Commercial Lettings,PROPCL,Pitney Bowes,A037177,25/05/2022,1424612,289.88,Postages
North West Leicestershire District Council,31UH,Finance,Exchequer Services,EXCH,Comensura Limited,A036958,25/05/2022,1424628,19207.33,Agency Staff
North West Leicestershire District Council,31UH,Finance,Exchequer Services,EXCH,Vodafone Limited,A001861,30/05/2022,1424727,607.26,Mobile Telephones
North West Leicestershire District Council,31UH,Housing,HRA Housing Management,HRAHM,H M C S,A033868,30/05/2022,1424728,2460.00,Legal & Professional Services
North West Leicestershire District Council,31UH,Finance,Exchequer Services,EXCH,British Telecommunications Plc,A000233,30/05/2022,1424729,3999.84,Alarm System Telephones
North West Leicestershire District Council,31UH,Finance,Financial Planning,FINPLA,Browne Jacobson LLP,A000133,30/05/2022,1424735,15500.00,Acquisition - Land and Buildings
North West Leicestershire District Council,31UH,Finance,Revenues,REVS,Redacted-Personal Data,A000133,05/05/2022,1423785,500.00,Grants
North West Leicestershire District Council,31UH,Finance,Revenues,REVS,Redacted-Personal Data,A000133,05/05/2022,1423786,500.00,Grants
North West Leicestershire District Council,31UH,Finance,Revenues,REVS,Redacted-Personal Data,A000133,05/05/2022,1423787,500.00,Grants
North West Leicestershire District Council,31UH,Finance,Revenues,REVS,Redacted-Personal Data,A000133,05/05/2022,1423788,500.00,Grants
North West Leicestershire District Council,31UH,Finance,Revenues,REVS,Redacted-Personal Data,A000133,05/05/2022,1423789,500.00,Grants
North West Leicestershire District Council,31UH,Legal & Democratic,Legal Services,LDLS,Ivy Legal Limited,A046810,30/05/2022,1424694,2925.00,External Legal Fees & Advice
North West Leicestershire District Council,31UH,Housing Repairs,HRA Housing Repairs & Maintenance,HRAHRM,Michael Dyson Associates Ltd,A028431,18/05/2022,1423994,1302.00,Consultants Fees
North West Leicestershire District Council,31UH,Housing,HRA Performance & Business Support,HRAPBS,Capita Business Services Ltd,A002968,18/05/2022,1424207,-21695.60,Computing
North West Leicestershire District Council,31UH,Housing,HRA Housing Management,HRAHM,Redacted-Personal Data,A047454,18/05/2022,1424220,250.00,Under Occupancy Incentives
North West Leicestershire District Council,31UH,Housing,HRA Housing Management,HRAHM,Redacted-Personal Data,A047440,18/05/2022,1424221,250.00,Under Occupancy Incentives
North West Leicestershire District Council,31UH,Housing,HRA Performance & Business Support,HRAPBS,Redacted-Personal Data,A047458,18/05/2022,1424233,250.00,Mutual Exchange
North West Leicestershire District Council,31UH,Housing Repairs,HRA Housing Repairs & Maintenance,HRAHRM,Morgan Lambert Limited,A045162,18/05/2022,1424234,1400.00,Servicing
North West Leicestershire District Council,31UH,Housing,HRA Housing Management,HRAHM,Redacted-Personal Data,A047460,18/05/2022,1424292,250.00,Mutual Exchange
North West Leicestershire District Council,31UH,Housing,HRA Housing Management,HRAHM,Redacted-Personal Data,A047459,18/05/2022,1424293,250.00,Mutual Exchange
North West Leicestershire District Council,31UH,Property Services,Property Facilities Management,PROPFM,Power Pac Ltd,A038024,18/05/2022,1424294,9046.00,Moving Costs
North West Leicestershire District Council,31UH,Environmental Health,Environmental Health & Licensing,EEHL,Blaby District Council,A000180,18/05/2022,1424295,1750.00,Attend Anywhere Renewal Costs
North West Leicestershire District Council,31UH,Property Services,Property Commercial Lettings,PROPCL,Pitney Bowes,A037177,18/05/2022,1424297,289.88,Postages
North West Leicestershire District Council,31UH,Housing Strategy,Community - Housing Strategy,HS,Melton Lettings Limited,A000133,19/05/2022,1424300,1050.00,Homelessness Prevention
North West Leicestershire District Council,31UH,Finance,Financial Planning,FINPLA,Public Works Loan Board,A001340,19/05/2022,1424301,43125.00,P.W.L.B. Loans
North West Leicestershire District Council,31UH,Finance,Exchequer Services,EXCH,Total Gas & Power,A033385,19/05/2022,1424303,18665.28,Electricity
North West Leicestershire District Council,31UH,Finance,Exchequer Services,EXCH,ESPO,A000958,19/05/2022,1424304,8652.41,Gas
North West Leicestershire District Council,31UH,Finance,Financial Planning,FINPLA,Leicestershire County Council,A000950,19/05/2022,1424315,2261733.00,Precept
North West Leicestershire District Council,31UH,Finance,Financial Planning,FINPLA,Leicestershire County Council,A000950,19/05/2022,1424316,2261733.00,Precept
North West Leicestershire District Council,31UH,Finance,Financial Planning,FINPLA,Department for Communities & Local Government,A028518,19/05/2022,1424317,3110909.00,Subsidy Receipts & Repayments
North West Leicestershire District Council,31UH,Finance,Financial Planning,FINPLA,Department for Communities & Local Government,A028518,19/05/2022,1424318,3110943.00,Subsidy Receipts & Repayments
North West Leicestershire District Council,31UH,Finance,Financial Planning,FINPLA,"Leicester, Leicestershire & Rutland Combined Fire Authority",A028339,19/05/2022,1424319,268708.00,Precept
North West Leicestershire District Council,31UH,Finance,Financial Planning,FINPLA,The Office of the Police and Crime Commissioner for Leicestershire,A007096,19/05/2022,1424320,934812.29,Precept
North West Leicestershire District Council,31UH,Finance,Financial Planning,FINPLA,Department for Communities & Local Government,A028518,19/05/2022,1424321,286717.00,Subsidy Receipts & Repayments
North West Leicestershire District Council,31UH,Finance,Financial Planning,FINPLA,Browne Jacobson LLP,A000133,19/05/2022,1424322,465058.60,Acquisition - Land and Buildings
North West Leicestershire District Council,31UH,Finance,Financial Planning,FINPLA,Castle Donigton Parish Council,A000133,19/05/2022,1424323,223281.53,Parish Council S106 Payments
North West Leicestershire District Council,31UH,Neighbourhoods & Communities,N & C Neighbourhoods,NACN,Phoenix Children's Foundation,A045102,25/05/2022,1424365,250.00,Grants
North West Leicestershire District Council,31UH,Neighbourhoods & Communities,N & C Neighbourhoods,NACN,Oaks Catering,A047462,25/05/2022,1424366,250.00,Grants
North West Leicestershire District Council,31UH,Neighbourhoods & Communities,N & C Neighbourhoods,NACN,Measham Community Primary School,A047463,25/05/2022,1424369,250.00,Grants
North West Leicestershire District Council,31UH,Neighbourhoods & Communities,N & C Neighbourhoods,NACN,Hugglescote & Donington Le Heath,A038616,25/05/2022,1424370,325.00,Grants
North West Leicestershire District Council,31UH,Neighbourhoods & Communities,N & C Neighbourhoods,NACN,Chorus Theatre,A039363,25/05/2022,1424371,250.00,Grants
North West Leicestershire District Council,31UH,Neighbourhoods & Communities,N & C Neighbourhoods,NACN,Osgathorpe Parish Council,A001251,25/05/2022,1424372,250.00,Grants
North West Leicestershire District Council,31UH,Property Services,Property Facilities Management,PROPFM,Water Plus Limited,A044043,25/05/2022,1424374,514.98,Water Charges (Metered)
North West Leicestershire District Council,31UH,Neighbourhoods & Communities,N & C Neighbourhoods,NACN,Hugglescote Community Primary School,A034859,25/05/2022,1424375,250.00,Grants
North West Leicestershire District Council,31UH,Legal & Democratic,Legal Services,LDLS,LexisNexis UK,A006155,25/05/2022,1424377,1220.00,Books & Publications
North West Leicestershire District Council,31UH,Housing Repairs,HRA Housing Repairs & Maintenance,HRAHRM,Dalrod UK Ltd,A046051,25/05/2022,1424378,995.95,Sewerage & Environmental
North West Leicestershire District Council,31UH,Housing Repairs,HRA Housing Repairs & Maintenance,HRAHRM,Dalrod UK Ltd,A046051,25/05/2022,1424379,2194.90,Sewerage & Environmental
North West Leicestershire District Council,31UH,Housing Repairs,HRA Housing Repairs & Maintenance,HRAHRM,Dalrod UK Ltd,A046051,25/05/2022,1424382,1033.39,Sewerage & Environmental
North West Leicestershire District Council,31UH,Street Management,Environment Parks,ENOP,Allstar Business Solutions Ltd,A039425,25/05/2022,1424383,274.49,Petrol
North West Leicestershire District Council,31UH,Information Technology,ICT Services,ICT,EE Ltd (Equipment),A043413,25/05/2022,1424385,-510.00,Computing
North West Leicestershire District Council,31UH,Information Technology,ICT Services,ICT,EE Ltd (Equipment),A043413,25/05/2022,1424386,780.00,Computing
North West Leicestershire District Council,31UH,Communications,Corporate - Customer Services,CS,Quadient UK Ltd,A000079,25/05/2022,1424387,3410.62,Postages
North West Leicestershire District Council,31UH,Information Technology,ICT Services,ICT,British Telecommunications Plc,A000233,25/05/2022,1424391,387.47,General Repairs
North West Leicestershire District Council,31UH,Street Management,Environment Waste Management,ENOWM,Larac,A024363,25/05/2022,1424392,445.00,Subscriptions
North West Leicestershire District Council,31UH,Housing Strategy,Community - Housing Strategy,HS,Ashby Lettings Ltd,A047464,25/05/2022,1424393,500.00,Rent Deposit Scheme
North West Leicestershire District Council,31UH,Neighbourhoods & Communities,N & C Neighbourhoods,NACN,Lockington Cum Hemington PC,A000999,30/05/2022,1424643,250.00,Grants
North West Leicestershire District Council,31UH,Housing,HRA Housing Management,HRAHM,PPG Architectural Coatings Ltd,A000876,30/05/2022,1424645,2423.89,Internal Decorations
North West Leicestershire District Council,31UH,Housing,HRA Housing Management,HRAHM,Water Plus Limited,A044043,30/05/2022,1424646,2022.79,Water Charges (Metered)
North West Leicestershire District Council,31UH,Neighbourhoods & Communities,N & C Neighbourhoods,NACN,Falcon Support,A046422,30/05/2022,1424652,250.00,Grants
North West Leicestershire District Council,31UH,Neighbourhoods & Communities,N & C Neighbourhoods,NACN,Swannington Parish Council,A001608,30/05/2022,1424653,250.00,Grants
North West Leicestershire District Council,31UH,Housing Repairs,HRA Housing Repairs & Maintenance,HRAHRM,McHale Contracts & Plant Environmental LLP,A046696,30/05/2022,1424654,4143.22,Environmental Surveys
North West Leicestershire District Council,31UH,Housing Repairs,HRA Housing Repairs & Maintenance,HRAHRM,Dalrod UK Ltd,A046051,30/05/2022,1424655,3464.63,Sewerage & Environmental
North West Leicestershire District Council,31UH,Neighbourhoods & Communities,N & C Neighbourhoods,NACN,Trinity Court Residents Ltd,A047473,30/05/2022,1424659,250.00,Grants
North West Leicestershire District Council,31UH,Street Management,Environment Transport,ENOT,Post Office Limited,A008559,30/05/2022,1424689,460.00,Licences - Road Fund Licence
North West Leicestershire District Council,31UH,Neighbourhoods & Communities,N & C Neighbourhoods,NACN,The Air Ambulance Service,A040022,30/05/2022,1424692,472.50,Donations
North West Leicestershire District Council,31UH,Leisure & Culture,Cultural Services Arts & Events,CULTEV,Redacted-Personal Data,A047474,30/05/2022,1424700,500.00,Proms/Picnic in the Park
North West Leicestershire District Council,31UH,Housing Strategy,Community - Housing Strategy,HS,Social Welfare Training,A047466,25/05/2022,1424394,252.00,Training Expenses
North West Leicestershire District Council,31UH,Housing,HRA Housing Management,HRAHM,Aareon UK Ltd,A045197,25/05/2022,1424445,435.00,Contract Payments (Other) Ext
North West Leicestershire District Council,31UH,Housing,HRA Housing Management,HRAHM,Aareon UK Ltd,A045197,25/05/2022,1424447,870.00,Contract Payments (Other) Ext
North West Leicestershire District Council,31UH,Property Services,Property Commercial Lettings,PROPCL,British Telecommunications Plc,A000233,25/05/2022,1424482,535.92,Telephones
North West Leicestershire District Council,31UH,Housing,HRA Housing Management,HRAHM,JLA Limited,A043639,25/05/2022,1424485,302.00,Cleaning & Domestic Equipment
North West Leicestershire District Council,31UH,Housing,HRA Housing Management,HRAHM,JLA Limited,A043639,25/05/2022,1424486,282.00,Cleaning & Domestic Equipment
North West Leicestershire District Council,31UH,Housing,HRA Housing Management,HRAHM,Water Plus Limited,A044043,25/05/2022,1424489,306.97,Water Charges (Metered)
North West Leicestershire District Council,31UH,Housing,HRA Housing Management,HRAHM,E.on Next,A047155,25/05/2022,1424490,1496.95,Electricity
North West Leicestershire District Council,31UH,Housing,HRA Housing Management,HRAHM,JLA Limited,A043639,25/05/2022,1424491,442.00,Cleaning & Domestic Equipment
North West Leicestershire District Council,31UH,Finance,Financial Planning,FINPLA,RNLI,A047469,25/05/2022,1424515,3521.06,Chairmans Charity Payment
North West Leicestershire District Council,31UH,Finance,Financial Planning,FINPLA,Mountain Rescue England and Wales,A047468,25/05/2022,1424516,3521.06,Chairmans Charity Payment
North West Leicestershire District Council,31UH,Street Management,Environment - Street Scene,ESS,Water Plus Limited,A044043,25/05/2022,1424518,283.33,Sewerage & Environmental
North West Leicestershire District Council,31UH,Neighbourhoods & Communities,N & C Neighbourhoods,NACN,Feed the Need,A046771,25/05/2022,1424521,250.00,Grants
North West Leicestershire District Council,31UH,Housing Repairs,HRA Housing Repairs & Maintenance,HRAHRM,Sure Maintenance Ltd,A040460,11/05/2022,1423774,19105.20,Plumbing and Heating
North West Leicestershire District Council,31UH,Housing Repairs,HRA Housing Repairs & Maintenance,HRAHRM,Sure Maintenance Ltd,A040460,11/05/2022,1423775,2870.40,Plumbing and Heating
North West Leicestershire District Council,31UH,Housing Repairs,HRA Housing Repairs & Maintenance,HRAHRM,Sure Maintenance Ltd,A040460,11/05/2022,1423776,659.19,Plumbing and Heating
North West Leicestershire District Council,31UH,Housing Repairs,HRA Housing Repairs & Maintenance,HRAHRM,Dalrod UK Ltd,A046051,11/05/2022,1423777,3854.37,Sewerage & Environmental
North West Leicestershire District Council,31UH,Information Technology,ICT Services,ICT,EE Ltd (Airtime),A018592,11/05/2022,1423798,1293.42,Mobile Telephones
North West Leicestershire District Council,31UH,Information Technology,ICT Services,ICT,EE Ltd (Airtime),A018592,11/05/2022,1423799,5816.28,Mobile Telephones
North West Leicestershire District Council,31UH,Legal & Democratic,Legal Services,LDLS,Six Pump Court,A047164,11/05/2022,1423827,250.00,Legal & Professional Services
North West Leicestershire District Council,31UH,Housing Repairs,HRA Housing Repairs & Maintenance,HRAHRM,Dalrod UK Ltd,A046051,11/05/2022,1423829,450.00,Sewerage & Environmental
North West Leicestershire District Council,31UH,Housing Repairs,HRA Housing Repairs & Maintenance,HRAHRM,Severn Trent Water,A043977,11/05/2022,1423850,2334.43,Contract Payments (Dws) Ext
North West Leicestershire District Council,31UH,Housing,HRA Housing Management,HRAHM,JLA Limited,A043639,11/05/2022,1423852,412.00,Cleaning & Domestic Equipment
North West Leicestershire District Council,31UH,Housing,HRA Housing Management,HRAHM,JLA Limited,A043639,11/05/2022,1423853,282.00,Cleaning & Domestic Equipment
North West Leicestershire District Council,31UH,Finance,Exchequer Services,EXCH,Click Travel Ltd,A044308,11/05/2022,1423855,5243.26,Accomodation and Travel
North West Leicestershire District Council,31UH,Legal & Democratic,Legal Services,LDLS,Browne Jacobson LLP,A042988,11/05/2022,1423858,1994.45,Legal & Professional Services
North West Leicestershire District Council,31UH,Legal & Democratic,Legal Services,LDLS,Browne Jacobson LLP,A042988,11/05/2022,1423859,309.50,PRE - Public Realm Masterplan
North West Leicestershire District Council,31UH,Finance,Exchequer Services,EXCH,Comensura Limited,A036958,11/05/2022,1423861,19302.78,Agency Staff
North West Leicestershire District Council,31UH,Finance,Exchequer Services,EXCH,Comensura Limited,A036958,11/05/2022,1423862,24651.08,Agency Staff
North West Leicestershire District Council,31UH,Finance,Exchequer Services,EXCH,Click Travel Ltd,A044308,30/05/2022,1424754,8300.23,Accomodation and Travel
North West Leicestershire District Council,31UH,Finance,Exchequer Services,EXCH,Click Travel Ltd,A044308,30/05/2022,1424755,11754.58,Accomodation and Travel
North West Leicestershire District Council,31UH,Finance,Exchequer Services,EXCH,Comensura Limited,A036958,30/05/2022,1424756,25896.23,Agency Staff
North West Leicestershire District Council,31UH,Housing Repairs,HRA Housing Repairs & Maintenance,HRAHRM,Michael Dyson Associates Ltd,A028431,04/05/2022,1422442,2516.50,Consultants Fees
North West Leicestershire District Council,31UH,Housing Repairs,HRA Housing Repairs & Maintenance,HRAHRM,Michael Dyson Associates Ltd,A028431,04/05/2022,1422443,1302.00,Consultants Fees
North West Leicestershire District Council,31UH,Finance,Exchequer Services,EXCH,Click Travel Ltd,A044308,04/05/2022,1423589,5670.25,Accomodation and Travel
North West Leicestershire District Council,31UH,Legal & Democratic,Legal Services,LDLS,Bethan Evans,A047418,04/05/2022,1423641,2380.00,Legal & Professional Services
North West Leicestershire District Council,31UH,Neighbourhoods & Communities,N & C Neighbourhoods,NACN,Woodstock in Whitwick,A044459,04/05/2022,1423643,250.00,Grants
North West Leicestershire District Council,31UH,Neighbourhoods & Communities,N & C Neighbourhoods,NACN,Ashby Arts Festival,A044071,04/05/2022,1423644,250.00,Grants
North West Leicestershire District Council,31UH,Neighbourhoods & Communities,N & C Neighbourhoods,NACN,Whitwick Scout Group,A037607,04/05/2022,1423645,250.00,Grants
North West Leicestershire District Council,31UH,Neighbourhoods & Communities,N & C Neighbourhoods,NACN,Royal British Legion - Whitwick Branch,A047430,04/05/2022,1423646,250.00,Grants
North West Leicestershire District Council,31UH,Communications,Corporate - Customer Services,CS,Quadient UK Ltd,A000079,04/05/2022,1423649,5000.00,Civic Events - Remembrance Day
North West Leicestershire District Council,31UH,Corporate Director,Human Resources,HR,Investors in People Community Interest Company,A047431,04/05/2022,1423707,13210.00,Corporate Training
North West Leicestershire District Council,31UH,Housing,HRA Housing Management,HRAHM,JLA Limited,A043639,04/05/2022,1423711,427.84,Cleaning & Domestic Equipment
North West Leicestershire District Council,31UH,Property Services,Property Commercial Lettings,PROPCL,Water Plus Limited,A044043,04/05/2022,1423712,371.78,Water Charges (Metered)
North West Leicestershire District Council,31UH,Legal & Democratic,Legal Services,LDLS,Recognising Excellence Ltd,A040432,04/05/2022,1423737,750.00,Legal Accreditation Assessment
North West Leicestershire District Council,31UH,Housing Repairs,HRA Housing Repairs & Maintenance,HRAHRM,Morgan Lambert Limited,A045162,04/05/2022,1423738,917.70,Servicing
North West Leicestershire District Council,31UH,Housing Repairs,HRA Housing Repairs & Maintenance,HRAHRM,Dalrod UK Ltd,A046051,04/05/2022,1423739,2136.74,Sewerage & Environmental
North West Leicestershire District Council,31UH,Housing Repairs,HRA Housing Repairs & Maintenance,HRAHRM,Dalrod UK Ltd,A046051,04/05/2022,1423740,1413.95,Sewerage & Environmental
North West Leicestershire District Council,31UH,Housing Repairs,HRA Housing Repairs & Maintenance,HRAHRM,McHale Contracts & Plant Environmental LLP,A046696,04/05/2022,1423741,8260.59,Environmental Surveys
North West Leicestershire District Council,31UH,Housing Repairs,HRA Housing Repairs & Maintenance,HRAHRM,Morgan Lambert Limited,A045162,04/05/2022,1423743,700.00,Servicing
North West Leicestershire District Council,31UH,Property Services,Property Commercial Lettings,PROPCL,Water Plus Limited,A044043,04/05/2022,1423746,337.59,Water Charges (Metered)
North West Leicestershire District Council,31UH,Finance,Exchequer Services,EXCH,H M Land Registry,A000713,25/05/2022,1424617,455.00,Land Registry Searches
North West Leicestershire District Council,31UH,Housing Repairs,HRA Housing Repairs & Maintenance,HRAHRM,Sure Maintenance Ltd,A040460,11/05/2022,1423869,7559.87,Plumbing and Heating
North West Leicestershire District Council,31UH,Housing Repairs,HRA Housing Repairs & Maintenance,HRAHRM,Sure Maintenance Ltd,A040460,11/05/2022,1423882,1918.63,Plumbing and Heating
North West Leicestershire District Council,31UH,Housing Repairs,HRA Housing Repairs & Maintenance,HRAHRM,Sure Maintenance Ltd,A040460,11/05/2022,1423883,461.75,Plumbing and Heating
North West Leicestershire District Council,31UH,Housing Repairs,HRA Housing Repairs & Maintenance,HRAHRM,Morgan Lambert Limited,A045162,11/05/2022,1423884,399.00,Servicing
North West Leicestershire District Council,31UH,Information Technology,ICT Services,ICT,De Lage Landen Leasing Limited,A046819,11/05/2022,1423963,354.00,Equipment Operating Leases
North West Leicestershire District Council,31UH,Housing Repairs,HRA Housing Repairs & Maintenance,HRAHRM,Dodd Group (Midlands) Limited,A036692,11/05/2022,1423966,5325.74,Electrical Inspections
North West Leicestershire District Council,31UH,Housing Repairs,HRA Housing Repairs & Maintenance,HRAHRM,Dalrod UK Ltd,A046051,11/05/2022,1423967,3784.61,Sewerage & Environmental
North West Leicestershire District Council,31UH,Housing Repairs,HRA Housing Repairs & Maintenance,HRAHRM,Sure Maintenance Ltd,A040460,11/05/2022,1423969,2648.02,Plumbing and Heating
North West Leicestershire District Council,31UH,Housing Repairs,HRA Housing Repairs & Maintenance,HRAHRM,Dalrod UK Ltd,A046051,11/05/2022,1424009,3592.37,Sewerage & Environmental
North West Leicestershire District Council,31UH,Housing,HRA Performance & Business Support,HRAPBS,Belton Parish Council,A000164,11/05/2022,1424011,250.00,Grants
North West Leicestershire District Council,31UH,Housing Repairs,HRA Housing Repairs & Maintenance,HRAHRM,Bersche-Rolt Limited,A045483,11/05/2022,1424039,9513.25,Contract Payments (Dws) Ext
North West Leicestershire District Council,31UH,Housing Repairs,HRA Housing Repairs & Maintenance,HRAHRM,Bersche-Rolt Limited,A045483,11/05/2022,1424040,10052.88,Contract Payments (Dws) Ext
North West Leicestershire District Council,31UH,Housing Repairs,HRA Housing Repairs & Maintenance,HRAHRM,Dalrod UK Ltd,A046051,25/05/2022,1424111,-1058.04,Sewerage & Environmental
North West Leicestershire District Council,31UH,Housing Repairs,HRA Housing Repairs & Maintenance,HRAHRM,Dalrod UK Ltd,A046051,25/05/2022,1424112,895.13,Sewerage & Environmental
North West Leicestershire District Council,31UH,Finance,Exchequer Services,EXCH,Comensura Limited,A036958,18/05/2022,1424119,20935.59,Agency Staff
North West Leicestershire District Council,31UH,Housing,HRA Housing Management,HRAHM,Low Carbon Products Ltd,A047447,18/05/2022,1424122,3738.51,Place Based Envirnmental Improvements
North West Leicestershire District Council,31UH,Housing,HRA Housing Management,HRAHM,Aareon UK Ltd,A045197,18/05/2022,1424134,4170.92,Contract Payments (Other) Ext
North West Leicestershire District Council,31UH,Housing,HRA Housing Management,HRAHM,Aareon UK Ltd,A045197,18/05/2022,1424135,4350.00,Contract Payments (Other) Ext
North West Leicestershire District Council,31UH,Housing,HRA Housing Management,HRAHM,Aareon UK Ltd,A045197,18/05/2022,1424136,3480.00,Contract Payments (Other) Ext
North West Leicestershire District Council,31UH,Housing,HRA Housing Management,HRAHM,Aareon UK Ltd,A045197,18/05/2022,1424138,460.00,Contract Payments (Other) Ext
North West Leicestershire District Council,31UH,Housing,HRA Housing Management,HRAHM,Aareon UK Ltd,A045197,18/05/2022,1424139,1740.00,Contract Payments (Other) Ext
North West Leicestershire District Council,31UH,Legal & Democratic,Legal Services,LDLS,Lawyers in Local Government,A040667,18/05/2022,1424168,555.00,Books & Publications
North West Leicestershire District Council,31UH,Housing Repairs,HRA Housing Repairs & Maintenance,HRAHRM,Morgan Lambert Limited,A045162,18/05/2022,1424170,399.00,Servicing
North West Leicestershire District Council,31UH,Housing Repairs,HRA Housing Repairs & Maintenance,HRAHRM,Sure Maintenance Ltd,A040460,18/05/2022,1424171,11037.60,Plumbing and Heating
North West Leicestershire District Council,31UH,Finance,Exchequer Services,EXCH,Click Travel Ltd,A044308,18/05/2022,1424174,6909.97,Accomodation and Travel
North West Leicestershire District Council,31UH,Neighbourhoods & Communities,N & C Neighbourhoods,NACN,Ibstock Parish Council,A000807,18/05/2022,1424175,250.00,Grants
North West Leicestershire District Council,31UH,Neighbourhoods & Communities,N & C Neighbourhoods,NACN,Worthington Parish Council,A001813,18/05/2022,1424176,250.00,Grants
North West Leicestershire District Council,31UH,Neighbourhoods & Communities,N & C Neighbourhoods,NACN,Ashby Woulds Town Council,A000089,18/05/2022,1424177,250.00,Grants
North West Leicestershire District Council,31UH,Housing Repairs,HRA Housing Repairs & Maintenance,HRAHRM,Ctrack Ltd,A045628,18/05/2022,1424178,1576.80,Operational Purchases
North West Leicestershire District Council,31UH,Housing Strategy,Community - Housing Strategy,HS,Redacted-Personal Data,A046119,18/05/2022,1424180,448.00,Rent Deposit Scheme
North West Leicestershire District Council,31UH,Housing Repairs,HRA Housing Repairs & Maintenance,HRAHRM,Sure Maintenance Ltd,A040460,18/05/2022,1424181,13154.40,Plumbing and Heating
North West Leicestershire District Council,31UH,Housing Repairs,HRA Housing Repairs & Maintenance,HRAHRM,Sure Maintenance Ltd,A040460,18/05/2022,1424182,3214.81,Plumbing and Heating
North West Leicestershire District Council,31UH,Housing,HRA Housing Management,HRAHM,Redacted-Personal Data,A047452,18/05/2022,1424197,250.00,Mutual Exchange
North West Leicestershire District Council,31UH,Housing,HRA Housing Management,HRAHM,Redacted-Personal Data,A047451,18/05/2022,1424198,250.00,Mutual Exchange
North West Leicestershire District Council,31UH,Legal & Democratic,Legal Services,LDLS,Martin Lee & Co,A030613,18/05/2022,1424204,610.00,Legal & Professional Services
North West Leicestershire District Council,31UH,Housing Repairs,HRA Housing Repairs & Maintenance,HRAHRM,Michael Dyson Associates Ltd,A028431,04/05/2022,1422441,826.00,Consultants Fees
North West Leicestershire District Council,31UH,Economic Development,Business Focus Group,BFG,Arch Communications (UK) Ltd,A046458,04/05/2022,1423721,990.00,Consultants Fees
North West Leicestershire District Council,31UH,Property Services,Property Facilities Management,PROPFM,Second Element Ltd,A046693,04/05/2022,1423725,423.52,Service Contracts - Premises costs
North West Leicestershire District Council,31UH,Property Services,Property Facilities Management,PROPFM,Second Element Ltd,A046693,04/05/2022,1423726,423.52,Service Contracts - Premises costs
North West Leicestershire District Council,31UH,Environmental Health,Environmental Health & Licensing,EEHL,Tennals Pest Control,A045705,11/05/2022,1423871,1779.00,External Contractor Payments
North West Leicestershire District Council,31UH,Housing Repairs,HRA Housing Repairs & Maintenance,HRAHRM,Westbury Industrial Supplies Limited,A009933,25/05/2022,1423742,3484.80,Uniforms
North West Leicestershire District Council,31UH,Street Management,Environment Transport,ENOT,WasteParts UK Limited,A036236,25/05/2022,1424629,714.91,Repairs - Parts
North West Leicestershire District Council,31UH,Housing,HRA Housing Management,HRAHM,Aareon UK Ltd,A045197,11/05/2022,1422825,870.00,Contract Payments (Other) Ext
North West Leicestershire District Council,31UH,Street Management,Environment - Street Scene,ESS,Groundsman Tools Ltd,A030744,11/05/2022,1423990,259.90,Operational Purchases
North West Leicestershire District Council,31UH,Street Management,Environment Transport,ENOT,Excel Trucks,A047371,11/05/2022,1423996,4070.00,Operational Equipment - Rep & Maint
North West Leicestershire District Council,31UH,Street Management,Environment - Street Scene,ESS,Harborough District Council,A008631,11/05/2022,1424000,6364.86,Contaminated Land Officer
North West Leicestershire District Council,31UH,Economic Development,Business Focus Group,BFG,Perfect Circle JV Ltd,A046694,11/05/2022,1424037,18673.33,Legal & Professional Services
North West Leicestershire District Council,31UH,Economic Development,Business Focus Group,BFG,Leicestershire County Council,A000950,11/05/2022,1424038,675.00,Premises Rents
North West Leicestershire District Council,31UH,Legal & Democratic,Electoral & Land Charges,LDELC,Leicestershire County Council,A027423,25/05/2022,1424613,1609.00,LCC Search Fees
North West Leicestershire District Council,31UH,Housing,HRA Housing Management,HRAHM,James Andrews Recruitment Solutions,A036290,25/05/2022,1424614,1116.75,Agency Staff
North West Leicestershire District Council,31UH,Property Services,Property Facilities Management,PROPFM,Second Element Ltd,A046693,11/05/2022,1422577,1062.76,Service Contracts - Premises costs
North West Leicestershire District Council,31UH,Property Services,Property Commercial Lettings,PROPCL,John Merison BMC Ltd,A001092,11/05/2022,1423864,338.93,General Repairs
North West Leicestershire District Council,31UH,Housing,HRA Older Persons Service,HRAOPS,Tunstall Healthcare (UK) Limited,A001701,11/05/2022,1423888,375.00,Alarm System Telephones
North West Leicestershire District Council,31UH,Information Technology,ICT Services,ICT,Phoenix Software Limited,A001298,11/05/2022,1423957,300.20,Phone system & network equipment
North West Leicestershire District Council,31UH,Street Management,Environment - Street Scene,ESS,Groundsman Tools Ltd,A030744,11/05/2022,1423991,964.90,Operational Purchases
North West Leicestershire District Council,31UH,Corporate Director,Human Resources,HR,Starfish,A047178,11/05/2022,1423997,2785.08,Employee Advertising
North West Leicestershire District Council,31UH,Property Services,Property Facilities Management,PROPFM,Midlands Cooling Services Ltd,A043433,04/05/2022,1422590,1000.00,General Repairs
North West Leicestershire District Council,31UH,Leisure & Culture,Cultural Services Arts & Events,CULTEV,Henderson Managment,A044292,04/05/2022,1423623,1350.40,Proms/Picnic in the Park
North West Leicestershire District Council,31UH,Planning & Development,Environment Planning Policy,EPP,Air Quality Consultants,A031783,04/05/2022,1423700,5850.00,Air Quality Strategy
North West Leicestershire District Council,31UH,Information Technology,ICT Services,ICT,Cuttlefish Multimedia Ltd,A032102,04/05/2022,1423722,1718.33,Website Maintenance
North West Leicestershire District Council,31UH,Street Management,Environment Waste Management,ENOWM,O Kay Engineering Services Ltd,A041943,04/05/2022,1423730,625.00,Operational Equipment - Rep & Maint
North West Leicestershire District Council,31UH,Property Services,Property Facilities Management,PROPFM,TECSERV UK LIMITED,A028261,04/05/2022,1423731,881.75,Service Contracts - Premises costs
North West Leicestershire District Council,31UH,Street Management,Environment - Street Scene,ESS,SOCOTEC UK Ltd,A046112,04/05/2022,1423732,1386.00,Air Quality Strategy
North West Leicestershire District Council,31UH,Property Services,Property Facilities Management,PROPFM,Second Element Ltd,A046693,04/05/2022,1423734,350.00,Legionella
North West Leicestershire District Council,31UH,Property Services,Property Facilities Management,PROPFM,Orbis Property Protection Ltd,A028149,18/05/2022,1424277,3270.00,Contract Payments (Other) Ext
North West Leicestershire District Council,31UH,Street Management,Environment Waste Management,ENOWM,Norwood Press,A042636,18/05/2022,1424278,595.00,Publicity & Promotion
North West Leicestershire District Council,31UH,Street Management,Environment Transport,ENOT,Pakawaste Ltd,A032627,18/05/2022,1424155,1560.00,Service Contracts
North West Leicestershire District Council,31UH,Street Management,Environment Transport,ENOT,John Merison BMC Ltd,A001092,18/05/2022,1424156,289.97,Operational Equipment
North West Leicestershire District Council,31UH,Street Management,Environment Transport,ENOT,CWT Fleet & Recovery Ltd,A046966,18/05/2022,1424161,330.00,Repairs - Parts
North West Leicestershire District Council,31UH,Information Technology,ICT Services,ICT,Park Place Technologies Ltd,A045525,18/05/2022,1424169,2791.08,Admin Equipment - Maintenance
North West Leicestershire District Council,31UH,Leisure & Culture,Sport & Physical Activity,SPA,V4 Services Ltd,A041333,18/05/2022,1424191,1787.50,Hermitage Leisure Centre/Recreation Ground Project
North West Leicestershire District Council,31UH,Planning & Development,Environment - Development Control,EDC,Dynamic Development Services Limited,A043778,18/05/2022,1424193,4536.00,External Legal Fees & Advice
North West Leicestershire District Council,31UH,Leisure & Culture,Cultural Services Arts & Events,CULTEV,The Outdoor Education Company (East) Ltd,A047328,18/05/2022,1424194,487.50,Proms/Picnic in the Park
North West Leicestershire District Council,31UH,Housing,HRA Older Persons Service,HRAOPS,Tunstall Healthcare (UK) Limited,A001701,30/05/2022,1424657,1509.20,Alarm System Telephones
North West Leicestershire District Council,31UH,Chief Exec,Chief Executive,CHEX,Thomas Lister Ltd,A045975,30/05/2022,1424672,2850.00,Consultants Fees
North West Leicestershire District Council,31UH,Legal & Democratic,Legal Services,LDLS,HQN Ltd,A007983,30/05/2022,1424737,250.00,Training Expenses
North West Leicestershire District Council,31UH,Property Services,Property Commercial Lettings,PROPCL,John Merison BMC Ltd,A001092,30/05/2022,1424739,961.65,General Repairs
North West Leicestershire District Council,31UH,Planning & Development,Environment - Development Control,EDC,TMP Worldwide Ltd,A045319,30/05/2022,1424744,391.44,Advertising
North West Leicestershire District Council,31UH,Planning & Development,Environment - Development Control,EDC,TMP Worldwide Ltd,A045319,30/05/2022,1424747,289.60,Advertising
North West Leicestershire District Council,31UH,Planning & Development,Environment - Development Control,EDC,TMP Worldwide Ltd,A045319,30/05/2022,1424749,544.20,Advertising
North West Leicestershire District Council,31UH,Street Management,Environment Transport,ENOT,Enterprise Rent-A-Car UK Ltd,A046419,30/05/2022,1424751,761.60,Hire Of Transport
North West Leicestershire District Council,31UH,Street Management,Environment Transport,ENOT,Finning (UK) Ltd,A028216,11/05/2022,1422085,2130.28,Scheduled Servicing - Parts
North West Leicestershire District Council,31UH,Property Services,Property Commercial Lettings,PROPCL,John Merison BMC Ltd,A001092,11/05/2022,1422839,2980.00,General Repairs
North West Leicestershire District Council,31UH,Chief Exec,Chief Executive,CHEX,Pollards Fruit & Veg,A045637,11/05/2022,1423556,380.00,Fruit Basket Delivery
North West Leicestershire District Council,31UH,Corporate Director,Corporate Director,CORDI,exi,A045557,11/05/2022,1423654,4987.50,Contract Payments (Other) Ext
North West Leicestershire District Council,31UH,Corporate Director,Corporate Director,CORDI,exi,A045557,11/05/2022,1423655,14962.50,Contract Payments (Other) Ext
North West Leicestershire District Council,31UH,Information Technology,ICT Services,ICT,Nominet UK,A046776,11/05/2022,1423720,765.94,Admin Equipment - Maintenance
North West Leicestershire District Council,31UH,Information Technology,ICT Services,ICT,Six Degrees Technology Group Ltd,A044205,11/05/2022,1423745,38560.56,Computing
North West Leicestershire District Council,31UH,Corporate Director,Human Resources,HR,Wider Plan Ltd,A043948,11/05/2022,1423805,958.00,Staff Benefit Scheme
North West Leicestershire District Council,31UH,Housing,HRA Housing Management,HRAHM,James Andrews Recruitment Solutions,A036290,11/05/2022,1423815,1116.75,Agency Staff
North West Leicestershire District Council,31UH,Legal & Democratic,Legal Services,LDLS,Ivy Legal Limited,A046810,11/05/2022,1423824,6950.00,External Legal Fees & Advice
North West Leicestershire District Council,31UH,Property Services,Property Facilities Management,PROPFM,ABCA Systems Limited,A047114,11/05/2022,1423828,2681.78,General Repairs
North West Leicestershire District Council,31UH,Neighbourhoods & Communities,N & C Neighbourhoods,NACN,Citizens Advice Leicestershire,A043282,11/05/2022,1423841,36000.00,Grants
North West Leicestershire District Council,31UH,Housing Repairs,HRA Housing Repairs & Maintenance,HRAHRM,Terratruck Distribution Services Ltd,A001648,11/05/2022,1423865,359.96,Consumable Materials
North West Leicestershire District Council,31UH,Property Services,Property Facilities Management,PROPFM,Orbis Property Protection Ltd,A028149,18/05/2022,1423677,13445.00,General Repairs
North West Leicestershire District Council,31UH,Property Services,Property Facilities Management,PROPFM,John Merison BMC Ltd,A001092,18/05/2022,1424210,539.00,General Repairs
North West Leicestershire District Council,31UH,Street Management,Environment - Street Scene,ESS,John Merison BMC Ltd,A001092,18/05/2022,1424298,840.00,General Repairs
North West Leicestershire District Council,31UH,Street Management,Environment - Street Scene,ESS,John Merison BMC Ltd,A001092,18/05/2022,1424299,3197.07,General Repairs
North West Leicestershire District Council,31UH,Housing Repairs,HRA Housing Repairs & Maintenance,HRAHRM,Leicestershire County Council,A000950,11/05/2022,1421731,722.42,Tipping Charges
North West Leicestershire District Council,31UH,Housing Repairs,HRA Housing Repairs & Maintenance,HRAHRM,Tennals Pest Control,A045705,11/05/2022,1423406,349.00,Pest Control
North West Leicestershire District Council,31UH,Information Technology,ICT Services,ICT,Phishing Tackle Ltd,A047404,11/05/2022,1423652,4874.58,Administrative Equipment
North West Leicestershire District Council,31UH,Housing,HRA Housing Management,HRAHM,One Consulting & Associates Ltd,A046600,11/05/2022,1423719,8350.00,Contract Payments (Other) Ext
North West Leicestershire District Council,31UH,Legal & Democratic,Legal Services,LDLS,HQN Ltd,A007983,11/05/2022,1423729,250.00,Training Expenses
North West Leicestershire District Council,31UH,Information Technology,ICT Services,ICT,Chess Cybersecurity Formerly Foursys Ltd,A029908,11/05/2022,1423735,21754.45,Admin Equipment - Maintenance
North West Leicestershire District Council,31UH,Corporate Director,Human Resources,HR,TMP Worldwide Ltd,A045319,11/05/2022,1423760,890.00,Employee Advertising
North West Leicestershire District Council,31UH,Property Services,Property Commercial Lettings,PROPCL,Readings Property Group Ltd,A045486,11/05/2022,1423762,400.00,Legal & Professional Services
North West Leicestershire District Council,31UH,Street Management,Environment Transport,ENOT,Second 2 None,A031408,11/05/2022,1423763,1180.00,Washing Down of Vehicles
North West Leicestershire District Council,31UH,Street Management,Environment Transport,ENOT,Enterprise Flex-E-Rent,A046516,11/05/2022,1423765,1056.50,Hire Of Transport
North West Leicestershire District Council,31UH,Information Technology,ICT Services,ICT,Chess Cybersecurity Formerly Foursys Ltd,A029908,11/05/2022,1423769,18425.16,Admin Equipment - Maintenance
North West Leicestershire District Council,31UH,Property Services,Property Facilities Management,PROPFM,Coalville Cleaning Services,A003037,11/05/2022,1423781,935.94,Contract Cleaning
North West Leicestershire District Council,31UH,Property Services,Property Commercial Lettings,PROPCL,Coalville Cleaning Services,A003037,11/05/2022,1423782,960.57,Contract Cleaning
North West Leicestershire District Council,31UH,Finance,Financial Planning,FINPLA,Leicestershire County Council,A000950,11/05/2022,1423790,57462.22,Added Years/Capital Cost
North West Leicestershire District Council,31UH,Economic Development,Business Focus Group,BFG,iG Surveys,A046433,11/05/2022,1423806,895.00,Legal & Professional Services
North West Leicestershire District Council,31UH,Economic Development,Business Focus Group,BFG,Simon Foote Architects,A045677,11/05/2022,1423807,250.00,Legal & Professional Services
North West Leicestershire District Council,31UH,Leisure & Culture,Cultural Services Arts & Events,CULTEV,Field and Lawn Ltd,A042594,11/05/2022,1423817,1500.00,Coalville Christmas Decorations
North West Leicestershire District Council,31UH,Planning & Development,Environment - Development Control,EDC,TMP Worldwide Ltd,A045319,11/05/2022,1423820,289.60,Advertising
North West Leicestershire District Council,31UH,Finance,Financial Planning,FINPLA,CIPFA,A027467,11/05/2022,1423822,3860.00,Subscriptions
North West Leicestershire District Council,31UH,Housing Repairs,HRA Housing Repairs & Maintenance,HRAHRM,Castle Damp & Timber Specialists Limited,A046384,11/05/2022,1423842,1961.00,Legal & Professional Services
North West Leicestershire District Council,31UH,Housing,HRA Housing Management,HRAHM,Aareon UK Ltd,A045197,18/05/2022,1422824,1740.00,Contract Payments (Other) Ext
North West Leicestershire District Council,31UH,Corporate Director,Human Resources,HR,Skill Gate,A047434,18/05/2022,1424054,5150.00,Corporate Training
North West Leicestershire District Council,31UH,Street Management,Environment Parks,ENOP,Tudor UK Ltd  (trading as Tudor Environmental),A043777,18/05/2022,1424055,414.56,Operational Purchases
North West Leicestershire District Council,31UH,Property Services,Property Facilities Management,PROPFM,Regarde Security Ltd,A013049,18/05/2022,1424060,620.80,Building Security
North West Leicestershire District Council,31UH,Property Services,Property Facilities Management,PROPFM,Regarde Security Ltd,A013049,18/05/2022,1424061,537.60,Building Security
North West Leicestershire District Council,31UH,Property Services,Property Facilities Management,PROPFM,Regarde Security Ltd,A013049,18/05/2022,1424066,310.40,Building Security
North West Leicestershire District Council,31UH,Property Services,Property Facilities Management,PROPFM,Regarde Security Ltd,A013049,18/05/2022,1424067,1045.20,Building Security
North West Leicestershire District Council,31UH,Street Management,Environment Transport,ENOT,HGV Direct Ltd,A046956,18/05/2022,1424079,485.92,Scheduled Servicing - Labour
North West Leicestershire District Council,31UH,Housing,HRA Performance & Business Support,HRAPBS,Marsh Limited,A042169,18/05/2022,1424146,9998.85,Insurance - Tenants Contributions
North West Leicestershire District Council,31UH,Street Management,Environment Transport,ENOT,Riverside Truck Rental Ltd,A045702,18/05/2022,1424151,5565.00,Hire Of Transport
North West Leicestershire District Council,31UH,Street Management,Environment Transport,ENOT,Riverside Truck Rental Ltd,A045702,18/05/2022,1424152,3759.00,Hire Of Transport
North West Leicestershire District Council,31UH,Street Management,Environment Transport,ENOT,Riverside Truck Rental Ltd,A045702,18/05/2022,1424153,4935.00,Hire Of Transport
North West Leicestershire District Council,31UH,Street Management,Environment Transport,ENOT,Riverside Truck Rental Ltd,A045702,18/05/2022,1424154,2448.30,Hire Of Transport
North West Leicestershire District Council,31UH,Street Management,Environment Transport,ENOT,Lubrication Limited,A047091,18/05/2022,1424157,2776.50,Consumable Materials
North West Leicestershire District Council,31UH,Street Management,Environment Transport,ENOT,Lubrication Limited,A047091,18/05/2022,1424158,581.82,Consumable Materials
North West Leicestershire District Council,31UH,Street Management,Environment Transport,ENOT,J F Lloyd & Sons,A000991,18/05/2022,1424160,390.00,Hire Of Operational Equipment
North West Leicestershire District Council,31UH,Property Services,Property Facilities Management,PROPFM,ABCA Systems Limited,A047114,18/05/2022,1424167,1441.03,General Repairs (Property Services)
North West Leicestershire District Council,31UH,Leisure & Culture,Sport & Physical Activity,SPA,Measham Leisure Centre,A027454,18/05/2022,1424192,914.93,Measham LC Lifestyle DD
North West Leicestershire District Council,31UH,Housing,HRA Housing Management,HRAHM,James Andrews Recruitment Solutions,A036290,18/05/2022,1424201,900.85,Agency Staff
North West Leicestershire District Council,31UH,Housing Repairs,HRA Housing Repairs & Maintenance,HRAHRM,Direct Works,A046570,11/05/2022,1421265,650.00,Subscriptions
North West Leicestershire District Council,31UH,Property Services,Property Commercial Lettings,PROPCL,John Merison BMC Ltd,A001092,11/05/2022,1421478,387.17,General Repairs
North West Leicestershire District Council,31UH,Housing Repairs,HRA Housing Repairs & Maintenance,HRAHRM,HQN Ltd,A007983,11/05/2022,1422338,250.00,Training Courses (Organised)
North West Leicestershire District Council,31UH,Housing,HRA Housing Management,HRAHM,Aareon UK Ltd,A045197,11/05/2022,1422823,2610.00,Contract Payments (Other) Ext
North West Leicestershire District Council,31UH,Property Services,Property Facilities Management,PROPFM,John Merison BMC Ltd,A001092,11/05/2022,1423036,495.00,Service Contracts - Premises costs
North West Leicestershire District Council,31UH,Housing Repairs,HRA Housing Repairs & Maintenance,HRAHRM,Leicestershire County Council,A000950,11/05/2022,1423343,3983.81,Tipping Charges
North West Leicestershire District Council,31UH,Information Technology,ICT Services,ICT,Tunstall Healthcare (UK) Limited,A001701,25/05/2022,1424396,5575.50,Contract Payments (Other) Ext
North West Leicestershire District Council,31UH,Planning & Development,Environment - Development Control,EDC,TMP Worldwide Ltd,A045319,25/05/2022,1424398,442.36,Advertising
North West Leicestershire District Council,31UH,Planning & Development,Environment - Development Control,EDC,TMP Worldwide Ltd,A045319,25/05/2022,1424400,289.60,Advertising
North West Leicestershire District Council,31UH,Planning & Development,Environment - Development Control,EDC,TMP Worldwide Ltd,A045319,25/05/2022,1424402,1412.00,Advertising
North West Leicestershire District Council,31UH,Planning & Development,Environment - Development Control,EDC,TMP Worldwide Ltd,A045319,25/05/2022,1424403,391.44,Advertising
North West Leicestershire District Council,31UH,Planning & Development,Environment - Development Control,EDC,TMP Worldwide Ltd,A045319,25/05/2022,1424405,340.52,Advertising
North West Leicestershire District Council,31UH,Planning & Development,Environment - Development Control,EDC,TMP Worldwide Ltd,A045319,25/05/2022,1424408,254.60,Advertising
North West Leicestershire District Council,31UH,Street Management,Environment Transport,ENOT,Michelin Tyre Plc,A046127,25/05/2022,1424423,1979.36,Repairs - Parts
North West Leicestershire District Council,31UH,Street Management,Environment Transport,ENOT,VAPTA Systems Ltd,A047059,25/05/2022,1424424,2450.00,Operational Equipment
North West Leicestershire District Council,31UH,Street Management,Environment Transport,ENOT,Calor Gas Limited,A032686,25/05/2022,1424433,1404.00,Gas
North West Leicestershire District Council,31UH,Street Management,Environment Transport,ENOT,J F Lloyd & Sons,A000991,25/05/2022,1424434,260.00,Hire Of Operational Equipment
North West Leicestershire District Council,31UH,Street Management,Environment Transport,ENOT,Snap-On Tools Ltd,A001521,25/05/2022,1424435,1035.00,Subscriptions
North West Leicestershire District Council,31UH,Street Management,Environment Transport,ENOT,JB Tool Hire Ltd,A011490,25/05/2022,1424436,1140.00,Hire Of Transport
North West Leicestershire District Council,31UH,Street Management,Environment - Street Scene,ESS,John Merison BMC Ltd,A001092,25/05/2022,1424473,1991.20,General Repairs
North West Leicestershire District Council,31UH,Street Management,Environment Waste Management,ENOWM,CFH Docmail Ltd,A046089,25/05/2022,1424478,24717.42,Publicity & Promotion
North West Leicestershire District Council,31UH,Information Technology,ICT Services,ICT,Dell Computer Corporation Ltd,A000470,25/05/2022,1424479,1357.78,Contract Payments (Other) Ext
North West Leicestershire District Council,31UH,Street Management,Environment Transport,ENOT,Watling JCB Ltd,A032114,25/05/2022,1424495,3619.82,Repairs - Parts
North West Leicestershire District Council,31UH,Street Management,Environment Transport,ENOT,Lodge Tyre Co Ltd,A004457,18/05/2022,1424081,378.42,Repairs - Parts
North West Leicestershire District Council,31UH,Street Management,Environment Transport,ENOT,Lodge Tyre Co Ltd,A004457,18/05/2022,1424082,340.00,Repairs - Parts
North West Leicestershire District Council,31UH,Housing,HRA Housing Management,HRAHM,Aareon UK Ltd,A045197,18/05/2022,1424141,435.00,Contract Payments (Other) Ext
North West Leicestershire District Council,31UH,Leisure & Culture,Cultural Services Arts & Events,CULTEV,Graffwerk Limited,A046129,30/05/2022,1423875,800.00,Grants
North West Leicestershire District Council,31UH,Corporate Director,Corporate Director,CORDI,Jeakins Weir Ltd,A047351,30/05/2022,1424414,132608.04,Contract Payments (Other) Ext
North West Leicestershire District Council,31UH,Information Technology,ICT Services,ICT,ACS Systems (UK) Ltd T/a ACS Office Solutions,A043447,30/05/2022,1424416,16380.00,Contract Payments (Other) Ext
North West Leicestershire District Council,31UH,Corporate Director,Corporate Director,CORDI,Wood Group UK Ltd,A047316,30/05/2022,1424480,7307.88,Consultants Fees
North West Leicestershire District Council,31UH,Street Management,Environment Transport,ENOT,Aebi Schmidt Uk Limited,A017053,30/05/2022,1424497,7015.33,Repairs - Parts
North West Leicestershire District Council,31UH,Street Management,Environment Transport,ENOT,Aebi Schmidt Uk Limited,A017053,30/05/2022,1424502,313.12,Repairs - Parts
North West Leicestershire District Council,31UH,Street Management,Environment - Street Scene,ESS,John Merison BMC Ltd,A001092,30/05/2022,1424505,600.00,General Repairs
North West Leicestershire District Council,31UH,Street Management,Environment Transport,ENOT,HGV Direct Ltd,A046956,30/05/2022,1424663,310.70,Repairs - Parts
North West Leicestershire District Council,31UH,Street Management,Environment Transport,ENOT,Watson Fuels,A047235,30/05/2022,1424675,1453.73,Diesel and Lubricants
North West Leicestershire District Council,31UH,Street Management,Environment Transport,ENOT,Watson Fuels,A047235,30/05/2022,1424676,29791.71,Diesel and Lubricants
North West Leicestershire District Council,31UH,Legal & Democratic,Legal Services,LDLS,James Andrews Recruitment Solutions,A036290,30/05/2022,1424680,427.50,Agency Staff
North West Leicestershire District Council,31UH,Corporate Director,Human Resources,HR,Acas,A038185,30/05/2022,1424683,3745.00,Corporate Training
North West Leicestershire District Council,31UH,Finance,Housing Benefits,BENS,Harborough District Council,A008631,11/05/2022,1423154,9064.99,Legal & Professional Services
North West Leicestershire District Council,31UH,Legal & Democratic,Legal Services,LDLS,HB Editorial Services Ltd,A044792,11/05/2022,1423874,990.00,Employee Advertising
North West Leicestershire District Council,31UH,Street Management,Environment Parks,ENOP,Seton Limited,A001465,11/05/2022,1423889,349.12,Operational Purchases
North West Leicestershire District Council,31UH,Neighbourhoods & Communities,N & C Community Safety,NACCS,BT Redcare,A033730,11/05/2022,1423890,8401.28,Telephones
North West Leicestershire District Council,31UH,Neighbourhoods & Communities,N & C Neighbourhoods,NACN,UKLoos.com,A036990,11/05/2022,1423953,280.00,Portable Toilet Hire
North West Leicestershire District Council,31UH,Neighbourhoods & Communities,N & C Community Safety,NACCS,Team Rubicon,A047375,11/05/2022,1423958,500.00,Event expenditure
North West Leicestershire District Council,31UH,Street Management,Environment Waste Management,ENOWM,O Kay Engineering Services Ltd,A041943,11/05/2022,1423962,695.00,Operational Equipment
North West Leicestershire District Council,31UH,Information Technology,ICT Services,ICT,dotdigital,A037038,11/05/2022,1423974,308.00,Administrative Equipment
North West Leicestershire District Council,31UH,Housing Repairs,HRA Housing Repairs & Maintenance,HRAHRM,Michael Dyson Associates Ltd,A028431,11/05/2022,1423975,1652.00,Consultants Fees
North West Leicestershire District Council,31UH,Street Management,Environment Transport,ENOT,Excel Trucks,A047371,25/05/2022,1422734,2325.00,Hire Of Transport
North West Leicestershire District Council,31UH,Information Technology,ICT Services,ICT,House on the Hill Software Ltd,A042199,25/05/2022,1424148,425.00,Administrative Equipment
North West Leicestershire District Council,31UH,Street Management,Environment - Street Scene,ESS,Mercia Hardware Ltd T/A Eagledale,A047275,25/05/2022,1424328,1690.00,Operational Equipment
North West Leicestershire District Council,31UH,Street Management,Environment - Street Scene,ESS,Midlands Co-operative  Ltd,A036454,25/05/2022,1424330,500.00,Welfare Funerals
North West Leicestershire District Council,31UH,Street Management,Environment - Street Scene,ESS,John Merison BMC Ltd,A001092,25/05/2022,1424331,1061.93,General Repairs
North West Leicestershire District Council,31UH,Street Management,Environment Transport,ENOT,HGV Direct Ltd,A046956,25/05/2022,1424336,434.50,Repairs - Parts
North West Leicestershire District Council,31UH,Street Management,Environment Transport,ENOT,HGV Direct Ltd,A046956,25/05/2022,1424338,378.56,Repairs - Parts
North West Leicestershire District Council,31UH,Planning & Development,Environment - Development Control,EDC,RAS Town Planning Services,A045293,25/05/2022,1424363,3354.00,External Legal Fees & Advice
North West Leicestershire District Council,31UH,Information Technology,ICT Services,ICT,ACS Systems (UK) Ltd T/a ACS Office Solutions,A043447,25/05/2022,1424415,49490.00,Contract Payments (Other) Ext
North West Leicestershire District Council,31UH,Street Management,Environment Transport,ENOT,Kilworth Machinery Ltd,A041200,25/05/2022,1424421,404.75,Repairs - Parts
North West Leicestershire District Council,31UH,Street Management,Environment Transport,ENOT,Mobile Hydraulics Ltd,A001131,25/05/2022,1424427,718.68,Repairs - Parts
North West Leicestershire District Council,31UH,Street Management,Environment Transport,ENOT,Mobile Hydraulics Ltd,A001131,25/05/2022,1424428,557.62,Repairs - Parts
North West Leicestershire District Council,31UH,Economic Development,Business Focus Group,BFG,David Smith Associates,A047176,25/05/2022,1424440,2400.00,Legal & Professional Services
North West Leicestershire District Council,31UH,Housing,HRA Housing Management,HRAHM,Aareon UK Ltd,A045197,25/05/2022,1424441,1740.00,Contract Payments (Other) Ext
North West Leicestershire District Council,31UH,Housing,HRA Housing Management,HRAHM,Aareon UK Ltd,A045197,25/05/2022,1424442,3915.00,Contract Payments (Other) Ext
North West Leicestershire District Council,31UH,Housing,HRA Housing Management,HRAHM,Aareon UK Ltd,A045197,25/05/2022,1424443,1740.00,Contract Payments (Other) Ext
North West Leicestershire District Council,31UH,Housing,HRA Housing Management,HRAHM,Aareon UK Ltd,A045197,25/05/2022,1424444,1305.00,Contract Payments (Other) Ext
North West Leicestershire District Council,31UH,Housing,HRA Housing Management,HRAHM,Aareon UK Ltd,A045197,25/05/2022,1424446,870.00,Contract Payments (Other) Ext
North West Leicestershire District Council,31UH,Housing Repairs,HRA Housing Repairs & Maintenance,HRAHRM,Aareon UK Ltd,A045197,25/05/2022,1424448,2134.00,Contract Payments (Other) Ext
North West Leicestershire District Council,31UH,Housing,HRA Housing Management,HRAHM,Aareon UK Ltd,A045197,25/05/2022,1424449,870.00,Contract Payments (Other) Ext
North West Leicestershire District Council,31UH,Housing,HRA Housing Management,HRAHM,Aareon UK Ltd,A045197,25/05/2022,1424450,3045.00,Contract Payments (Other) Ext
North West Leicestershire District Council,31UH,Housing,HRA Housing Management,HRAHM,Aareon UK Ltd,A045197,25/05/2022,1424451,870.00,Contract Payments (Other) Ext
North West Leicestershire District Council,31UH,Housing,HRA Housing Management,HRAHM,Aareon UK Ltd,A045197,25/05/2022,1424452,1305.00,Contract Payments (Other) Ext
North West Leicestershire District Council,31UH,Housing,HRA Housing Management,HRAHM,Aareon UK Ltd,A045197,25/05/2022,1424453,870.00,Contract Payments (Other) Ext
North West Leicestershire District Council,31UH,Housing,HRA Housing Management,HRAHM,Aareon UK Ltd,A045197,25/05/2022,1424454,1305.00,Contract Payments (Other) Ext
North West Leicestershire District Council,31UH,Housing,HRA Housing Management,HRAHM,Aareon UK Ltd,A045197,25/05/2022,1424455,582.00,Contract Payments (Other) Ext
North West Leicestershire District Council,31UH,Housing,HRA Housing Management,HRAHM,Aareon UK Ltd,A045197,25/05/2022,1424456,2610.00,Contract Payments (Other) Ext
North West Leicestershire District Council,31UH,Housing,HRA Housing Management,HRAHM,Aareon UK Ltd,A045197,25/05/2022,1424457,2610.00,Contract Payments (Other) Ext
North West Leicestershire District Council,31UH,Housing,HRA Housing Management,HRAHM,Aareon UK Ltd,A045197,25/05/2022,1424458,437.50,Contract Payments (Other) Ext
North West Leicestershire District Council,31UH,Housing,HRA Housing Management,HRAHM,Aareon UK Ltd,A045197,25/05/2022,1424459,4350.00,Contract Payments (Other) Ext
North West Leicestershire District Council,31UH,Housing,HRA Housing Management,HRAHM,Aareon UK Ltd,A045197,25/05/2022,1424460,3050.00,Contract Payments (Other) Ext
North West Leicestershire District Council,31UH,Housing,HRA Housing Management,HRAHM,Aareon UK Ltd,A045197,25/05/2022,1424461,460.00,Contract Payments (Other) Ext
North West Leicestershire District Council,31UH,Housing,HRA Housing Management,HRAHM,Aareon UK Ltd,A045197,25/05/2022,1424462,435.00,Contract Payments (Other) Ext
North West Leicestershire District Council,31UH,Housing Repairs,HRA Housing Repairs & Maintenance,HRAHRM,Aaron Services Ltd,A046738,25/05/2022,1424463,7995.91,Contractor Payments
North West Leicestershire District Council,31UH,Housing Repairs,HRA Housing Repairs & Maintenance,HRAHRM,Aaron Services Ltd,A046738,25/05/2022,1424464,321703.78,Contractor Payments
North West Leicestershire District Council,31UH,Housing Repairs,HRA Housing Repairs & Maintenance,HRAHRM,Aaron Services Ltd,A046738,25/05/2022,1424465,16922.28,Contractor Payments
North West Leicestershire District Council,31UH,Housing Repairs,HRA Housing Repairs & Maintenance,HRAHRM,Aaron Services Ltd,A046738,25/05/2022,1424466,157542.90,Contractor Payments
North West Leicestershire District Council,31UH,Housing Repairs,HRA Housing Repairs & Maintenance,HRAHRM,Aaron Services Ltd,A046738,25/05/2022,1424467,24980.17,Contractor Payments
North West Leicestershire District Council,31UH,Housing Repairs,HRA Housing Repairs & Maintenance,HRAHRM,Aaron Services Ltd,A046738,25/05/2022,1424468,11915.03,Contractor Payments
North West Leicestershire District Council,31UH,Legal & Democratic,Civic Expenses,LDCE,The Fuel Factory,A045625,25/05/2022,1424469,250.00,Members Refreshments
North West Leicestershire District Council,31UH,Street Management,Environment Transport,ENOT,Kilworth Machinery Ltd,A041200,25/05/2022,1424494,663.10,Repairs - Parts
North West Leicestershire District Council,31UH,Housing Repairs,HRA Housing Repairs & Maintenance,HRAHRM,Michael Dyson Associates Ltd,A028431,04/05/2022,1421185,5033.00,Consultants Fees
North West Leicestershire District Council,31UH,Housing Repairs,HRA Housing Repairs & Maintenance,HRAHRM,Michael Dyson Associates Ltd,A028431,04/05/2022,1421186,1302.00,Consultants Fees
North West Leicestershire District Council,31UH,Housing Repairs,HRA Housing Repairs & Maintenance,HRAHRM,Michael Dyson Associates Ltd,A028431,04/05/2022,1421201,826.00,Consultants Fees
North West Leicestershire District Council,31UH,Property Services,Property Commercial Lettings,PROPCL,Gleam Team Services Limited,A000129,04/05/2022,1423185,350.00,Contract Cleaning
North West Leicestershire District Council,31UH,Property Services,Property Commercial Lettings,PROPCL,John Merison BMC Ltd,A001092,04/05/2022,1423238,349.73,General Repairs
North West Leicestershire District Council,31UH,Housing Strategy,Community - Housing Strategy,HS,The Cedars,A027796,04/05/2022,1423246,275.00,Other Services
North West Leicestershire District Council,31UH,Street Management,Environment Parks,ENOP,Groundsman Tools Ltd,A030744,04/05/2022,1423365,418.98,Operational Purchases
North West Leicestershire District Council,31UH,Housing Repairs,HRA Housing Repairs & Maintenance,HRAHRM,Second Element Ltd,A046693,04/05/2022,1423404,324.67,Legionella
North West Leicestershire District Council,31UH,Environmental Health,Environmental Health & Licensing,EEHL,Institute of Licensing (Events) Limited,A033316,04/05/2022,1423563,350.00,Training Expenses
North West Leicestershire District Council,31UH,Housing,HRA Housing Management,HRAHM,MRC Community Action,A001208,04/05/2022,1423572,494.00,HRA Hardship Fund
North West Leicestershire District Council,31UH,Chief Exec,Chief Executive,CHEX,PTTP Planning Services,A046531,04/05/2022,1423574,4000.00,Interim Support
North West Leicestershire District Council,31UH,Housing,HRA Housing Management,HRAHM,James Andrews Recruitment Solutions,A036290,04/05/2022,1423575,1109.31,Agency Staff
North West Leicestershire District Council,31UH,Corporate Director,Corporate Director,CORDI,IDP (Central) Limited,A047366,04/05/2022,1423625,6500.00,Contract Payments (Other) Ext
North West Leicestershire District Council,31UH,Legal & Democratic,Electoral & Land Charges,LDELC,Leicestershire County Council,A027423,04/05/2022,1423626,1437.00,LCC Search Fees
North West Leicestershire District Council,31UH,Neighbourhoods & Communities,N & C Community Safety,NACCS,exi,A045557,04/05/2022,1423656,5000.00,Project Management Monthly Fee
North West Leicestershire District Council,31UH,Housing,HRA Housing Management,HRAHM,exi,A045557,04/05/2022,1423657,8542.86,Legal & Professional Services
North West Leicestershire District Council,31UH,Street Management,Environment Transport,ENOT,Mobile Hydraulics Ltd,A001131,04/05/2022,1423662,1082.86,Repairs - Parts
North West Leicestershire District Council,31UH,Street Management,Environment Transport,ENOT,Mobile Hydraulics Ltd,A001131,04/05/2022,1423664,864.21,Repairs - Parts
North West Leicestershire District Council,31UH,Street Management,Environment Transport,ENOT,Parkers The Parts People,A044935,04/05/2022,1423686,336.11,Repairs - Parts
North West Leicestershire District Council,31UH,Street Management,Environment Transport,ENOT,Parkers The Parts People,A044935,04/05/2022,1423692,430.84,Repairs - Parts
North West Leicestershire District Council,31UH,Street Management,Environment Transport,ENOT,Kilworth Machinery Ltd,A041200,04/05/2022,1423705,2230.32,Scheduled Servicing - Labour
North West Leicestershire District Council,31UH,Street Management,Environment Transport,ENOT,Kilworth Machinery Ltd,A041200,04/05/2022,1423706,2154.83,Scheduled Servicing - Labour
North West Leicestershire District Council,31UH,Housing,HRA Performance & Business Support,HRAPBS,Capita Business Services Ltd,A002968,18/05/2022,1424219,48882.07,Computing
North West Leicestershire District Council,31UH,Housing,HRA Performance & Business Support,HRAPBS,Alliance Contracting Solutions Ltd,A043325,18/05/2022,1423580,10921.95,Legal & Professional Services
North West Leicestershire District Council,31UH,Property Services,Property Commercial Lettings,PROPCL,Readings Property Group Ltd,A045486,18/05/2022,1423759,250.00,Legal & Professional Services
North West Leicestershire District Council,31UH,Street Management,Environment Parks,ENOP,Groundsman Tools Ltd,A030744,18/05/2022,1423836,402.12,Operational Purchases
North West Leicestershire District Council,31UH,Street Management,Environment Parks,ENOP,Regarde Security Ltd,A013049,18/05/2022,1423872,1241.60,Security Services
North West Leicestershire District Council,31UH,Street Management,Environment Parks,ENOP,FLP Ltd (Division - Online Playrgrounds),A042423,18/05/2022,1423960,415.80,Operational Purchases
North West Leicestershire District Council,31UH,Neighbourhoods & Communities,N & C Community Safety,NACCS,JNE Security,A044895,18/05/2022,1424042,1420.00,PCC Early Intervention Expenditure
North West Leicestershire District Council,31UH,Street Management,Environment Parks,ENOP,Tudor UK Ltd  (trading as Tudor Environmental),A043777,18/05/2022,1424056,759.20,Operational Purchases
North West Leicestershire District Council,31UH,Environmental Health,Environmental Health & Licensing,EEHL,Eville And Jones Limited,A033670,18/05/2022,1424058,3117.00,Vet Inspection
North West Leicestershire District Council,31UH,Property Services,Property Facilities Management,PROPFM,Regarde Security Ltd,A013049,18/05/2022,1424065,465.60,Security Services
North West Leicestershire District Council,31UH,Street Management,Environment Transport,ENOT,Mertrux Ltd,A035291,18/05/2022,1424083,376.94,Repairs - Parts
North West Leicestershire District Council,31UH,Street Management,Environment Transport,ENOT,Mobile Hydraulics Ltd,A001131,18/05/2022,1424084,345.64,Repairs - Parts
North West Leicestershire District Council,31UH,Information Technology,ICT Services,ICT,Multidata (Europe) Ltd,A032931,18/05/2022,1424092,1869.00,Admin Equipment - Maintenance
North West Leicestershire District Council,31UH,Information Technology,ICT Services,ICT,Six Degrees Technology Group Ltd,A044205,18/05/2022,1424118,17864.49,Admin Equipment - Maintenance
North West Leicestershire District Council,31UH,Street Management,Environment Transport,ENOT,Watson Fuels,A047235,18/05/2022,1424142,22377.26,Diesel and Lubricants
North West Leicestershire District Council,31UH,Corporate Director,Human Resources,HR,The National Autistic Society,A046474,18/05/2022,1424144,1420.00,Virtual Workplace Assessment
North West Leicestershire District Council,31UH,Housing Repairs,HRA Housing Repairs & Maintenance,HRAHRM,HQN Ltd,A007983,30/05/2022,1423571,375.00,Training Expenses
North West Leicestershire District Council,31UH,Housing Repairs,HRA Housing Repairs & Maintenance,HRAHRM,OMS,A043771,30/05/2022,1424395,650.00,Training Expenses
North West Leicestershire District Council,31UH,Leisure & Culture,Cultural Services Arts & Events,CULTEV,Interact Entertainments Ltd,A040522,30/05/2022,1424475,1695.00,Proms/Picnic in the Park
North West Leicestershire District Council,31UH,Environmental Health,Environmental Health & Licensing,EEHL,Vivid Resourcing,A044601,30/05/2022,1424492,552.15,Agency Staff
North West Leicestershire District Council,31UH,Street Management,Environment Transport,ENOT,Paynes Garages Ltd,A046151,30/05/2022,1424641,495.00,Repairs - Parts
North West Leicestershire District Council,31UH,Housing Repairs,HRA Housing Repairs & Maintenance,HRAHRM,Orbis Property Protection Ltd,A028149,30/05/2022,1424673,1000.00,Contract Cleaning
North West Leicestershire District Council,31UH,Legal & Democratic,Member Services,LDMS,Local Government Association,A002189,30/05/2022,1424674,545.00,Training Expenses
North West Leicestershire District Council,31UH,Street Management,Environment Transport,ENOT,Terberg Matec UK Limited,A001647,30/05/2022,1424678,290.58,Repairs - Parts
North West Leicestershire District Council,31UH,Housing Repairs,HRA Housing Repairs & Maintenance,HRAHRM,Alliance Contracting Solutions Ltd,A043325,30/05/2022,1424685,2167.50,Legal & Professional Services
North West Leicestershire District Council,31UH,Housing Repairs,HRA Housing Repairs & Maintenance,HRAHRM,Good Homes Alliance,A047400,30/05/2022,1424691,1000.00,Legal & Professional Services
North West Leicestershire District Council,31UH,Street Management,Environment Transport,ENOT,EPT Services,A039764,11/05/2022,1423863,611.15,Protective Clothing
North West Leicestershire District Council,31UH,Planning & Development,Environment - Development Control,EDC,United Utilities Water Ltd,A047240,11/05/2022,1423877,632.24,S106 River Mease Expenditure
North West Leicestershire District Council,31UH,Housing Repairs,HRA Housing Repairs & Maintenance,HRAHRM,Tersus Consultancy Limited,A046925,11/05/2022,1423885,1445.85,Training Expenses
North West Leicestershire District Council,31UH,Street Management,Environment Transport,ENOT,Riverside Truck Rental Ltd,A045702,25/05/2022,1422957,1727.35,Repairs - Parts
North West Leicestershire District Council,31UH,Street Management,Environment Waste Management,ENOWM,QA Ltd,A034064,25/05/2022,1423017,1123.05,Training Expenses
North West Leicestershire District Council,31UH,Property Services,Property Facilities Management,PROPFM,John Merison BMC Ltd,A001092,25/05/2022,1423577,748.26,General Repairs
North West Leicestershire District Council,31UH,Corporate Director,Corporate Director,CORDI,Amazon Payments UK Ltd,A036743,25/05/2022,1424109,666.67,Operational Equipment
North West Leicestershire District Council,31UH,Information Technology,ICT Services,ICT,Nettitude Limited,A043672,25/05/2022,1424226,1400.00,Cyber Accreditation Asessment
North West Leicestershire District Council,31UH,Finance,Financial Planning,FINPLA,Creditsafe Business Solutions Ltd,A031200,25/05/2022,1424326,1935.00,Credit Score and Verification Software
North West Leicestershire District Council,31UH,Street Management,Environment Transport,ENOT,Reflec Signs & Graphics Ltd,A025348,25/05/2022,1424345,340.00,Repairs - Parts
North West Leicestershire District Council,31UH,Street Management,Environment Parks,ENOP,Groundsman Tools Ltd,A030744,25/05/2022,1424348,278.26,Operational Purchases
North West Leicestershire District Council,31UH,Planning & Development,Environment - Development Control,EDC,Rob Thompson Urbanism Limited,A045846,25/05/2022,1424349,4072.50,Urban Design/Our Place Expenditure
North West Leicestershire District Council,31UH,Planning & Development,Environment - Development Control,EDC,Ilex Tree Services,A046556,25/05/2022,1424350,1506.80,External Legal Fees & Advice
North West Leicestershire District Council,31UH,Street Management,Environment Transport,ENOT,Enterprise Rent-A-Car UK Ltd,A046419,25/05/2022,1424352,633.92,Hire Of Transport
North West Leicestershire District Council,31UH,Street Management,Environment Transport,ENOT,J F Lloyd & Sons,A000991,25/05/2022,1424353,260.00,Hire Of Operational Equipment
North West Leicestershire District Council,31UH,Street Management,Environment Transport,ENOT,Selby's Garage (Woodhouse) Ltd,A044011,25/05/2022,1424354,376.53,Hire Of Operational Equipment
North West Leicestershire District Council,31UH,Planning & Development,Environment - Development Control,EDC,Rob Thompson Urbanism Limited,A045846,25/05/2022,1424355,2100.00,Urban Design/Our Place Expenditure
North West Leicestershire District Council,31UH,Street Management,Environment Transport,ENOT,Ford & Slater Group Ltd,A000625,25/05/2022,1424357,1260.00,Vehicle Parts
North West Leicestershire District Council,31UH,Street Management,Environment Transport,ENOT,Mertrux Ltd,A035291,25/05/2022,1424359,262.87,Repairs - Parts
North West Leicestershire District Council,31UH,Planning & Development,Environment Planning Policy,EPP,AECOM Limited,A037801,25/05/2022,1424362,2100.00,Consultants Fees
North West Leicestershire District Council,31UH,Corporate Director,Human Resources,HR,Health Management Ltd,A038840,25/05/2022,1424364,300.00,Medical Fees
North West Leicestershire District Council,31UH,Housing Repairs,HRA Housing Repairs & Maintenance,HRAHRM,Anthony Hope MCIAT,A047394,25/05/2022,1424388,5495.00,Legal & Professional Services
North West Leicestershire District Council,31UH,Corporate Director,Corporate Director,CORDI,exi,A045557,04/05/2022,1420135,4225.00,Advertising
North West Leicestershire District Council,31UH,Property Services,Property Facilities Management,PROPFM,Citron Hygiene Ltd,A033313,04/05/2022,1423159,941.19,Cleaning & Domestic Equipment
North West Leicestershire District Council,31UH,Communications,Corporate - Communications,CP,Cuttlefish Multimedia Ltd,A032102,04/05/2022,1423205,1170.00,Digital Communications
North West Leicestershire District Council,31UH,Leisure & Culture,Cultural Services Arts & Events,CULTEV,One Stop Promotions (Leics) Ltd,A001240,04/05/2022,1423341,287.50,Proms/Picnic in the Park
North West Leicestershire District Council,31UH,Property Services,Property Commercial Lettings,PROPCL,Coalville Cleaning Services,A003037,04/05/2022,1423359,417.08,Contract Cleaning
North West Leicestershire District Council,31UH,Information Technology,ICT Services,ICT,Dell Computer Corporation Ltd,A000470,04/05/2022,1423392,6623.53,Contract Payments (Other) Ext
North West Leicestershire District Council,31UH,Planning & Development,Environment - Town Centre/CCTV,ECCTV,Women's Aid Leicestershire Ltd,A039843,04/05/2022,1423557,12864.18,PCC Early Intervention Expenditure
North West Leicestershire District Council,31UH,Information Technology,ICT Services,ICT,ACS Systems (UK) Ltd T/a ACS Office Solutions,A043447,04/05/2022,1423559,1065.00,Contract Payments (Other) Ext
North West Leicestershire District Council,31UH,Property Services,Property Facilities Management,PROPFM,Orbis Property Protection Ltd,A028149,04/05/2022,1423560,1200.00,General Repairs
North West Leicestershire District Council,31UH,Property Services,Property Facilities Management,PROPFM,Orbis Property Protection Ltd,A028149,04/05/2022,1423561,2425.00,General Repairs
North West Leicestershire District Council,31UH,Street Management,Environment Transport,ENOT,Watson Fuels,A047235,04/05/2022,1423562,31446.65,Diesel and Lubricants
North West Leicestershire District Council,31UH,Economic Development,Business Focus Group,BFG,City Dressing,A045518,04/05/2022,1423565,265.00,Town Centre & Area Regeneration  Initiative
North West Leicestershire District Council,31UH,Street Management,Environment Parks,ENOP,Vitax Limited,A031093,04/05/2022,1423566,369.97,Operational Purchases
North West Leicestershire District Council,31UH,Chief Exec,Chief Executive,CHEX,Sable Leigh Consultancy Ltd T/A SLC Rail,A042727,04/05/2022,1423567,2312.50,Consultants Fees
North West Leicestershire District Council,31UH,Planning & Development,Environment - Development Control,EDC,Ivy Legal Limited,A046810,04/05/2022,1423570,750.00,Training Courses (Organised)
North West Leicestershire District Council,31UH,Street Management,Environment - Street Scene,ESS,TMP Worldwide Ltd,A045319,04/05/2022,1423573,493.28,Advertising
North West Leicestershire District Council,31UH,Corporate Director,Corporate Director,CORDI,exi,A045557,04/05/2022,1423576,1400.00,Advertising
North West Leicestershire District Council,31UH,Property Services,Property Facilities Management,PROPFM,John Merison BMC Ltd,A001092,04/05/2022,1423578,829.38,General Repairs
North West Leicestershire District Council,31UH,Communications,Corporate - Customer Services,CS,Quadient UK Ltd,A000079,04/05/2022,1423579,1149.90,Postages
North West Leicestershire District Council,31UH,Finance,Housing Benefits,BENS,Capita Business Services Ltd,A002968,04/05/2022,1423586,5638.02,Computing
North West Leicestershire District Council,31UH,Legal & Democratic,Legal Services,LDLS,Adobe Systems Software Ireland Ltd,A047106,04/05/2022,1423590,1500.00,Computing
North West Leicestershire District Council,31UH,Planning & Development,Environment - Development Control,EDC,TMP Worldwide Ltd,A045319,04/05/2022,1423621,340.52,Advertising
North West Leicestershire District Council,31UH,Planning & Development,Environment - Development Control,EDC,TMP Worldwide Ltd,A045319,04/05/2022,1423622,423.80,Advertising
North West Leicestershire District Council,31UH,Finance,Financial Planning,FINPLA,Mazars LLP,A045078,04/05/2022,1423624,9725.00,Audit Commision Fees
North West Leicestershire District Council,31UH,Planning & Development,Environment - Development Control,EDC,TMP Worldwide Ltd,A045319,04/05/2022,1423627,289.60,Advertising
North West Leicestershire District Council,31UH,Planning & Development,Environment - Development Control,EDC,TMP Worldwide Ltd,A045319,04/05/2022,1423630,442.36,Advertising
North West Leicestershire District Council,31UH,Planning & Development,Environment - Development Control,EDC,TMP Worldwide Ltd,A045319,04/05/2022,1423631,289.60,Advertising
North West Leicestershire District Council,31UH,Planning & Development,Environment - Development Control,EDC,Ilex Tree Services,A046556,04/05/2022,1423633,1546.00,External Legal Fees & Advice
North West Leicestershire District Council,31UH,Corporate Director,Corporate Director,CORDI,Elan Removals,A041305,04/05/2022,1423634,1950.00,Contract Payments (Other) Ext
North West Leicestershire District Council,31UH,Street Management,Environment Waste Management,ENOWM,One51 ES Plastics(UK) Ltd  t/a MGB Plastics,A044595,04/05/2022,1423635,11700.00,General Materials
North West Leicestershire District Council,31UH,Information Technology,ICT Services,ICT,The Shaw Trust,A046274,04/05/2022,1423637,3360.00,Admin Equipment - Maintenance
North West Leicestershire District Council,31UH,Planning & Development,Environment - Development Control,EDC,Jeremy Benn Associates Ltd (t/a JBA Consulting),A044010,04/05/2022,1423639,1275.00,Consultants Fees
North West Leicestershire District Council,31UH,Street Management,Environment Parks,ENOP,Coalville Signs,A000370,04/05/2022,1423648,688.50,Operational Purchases
North West Leicestershire District Council,31UH,Street Management,Environment Transport,ENOT,Selby's Garage (Woodhouse) Ltd,A044011,04/05/2022,1423659,389.44,Hire Of Operational Equipment
North West Leicestershire District Council,31UH,Street Management,Environment Transport,ENOT,PR HORTICULTURAL SERVICES LTD,N001132009,04/05/2022,1423660,318.98,Repairs - Parts
North West Leicestershire District Council,31UH,Street Management,Environment Transport,ENOT,Ford Motor Company T/A Parts Plus,A045765,04/05/2022,1423661,383.88,Repairs - Parts
North West Leicestershire District Council,31UH,Street Management,Environment Transport,ENOT,J F Lloyd & Sons,A000991,04/05/2022,1423669,260.00,Hire Of Operational Equipment
North West Leicestershire District Council,31UH,Street Management,Environment Transport,ENOT,Lee Wells Autobodies Ltd,A031849,04/05/2022,1423670,746.10,General Motor Insurance
North West Leicestershire District Council,31UH,Street Management,Environment Transport,ENOT,I-Clean,A034116,04/05/2022,1423671,1666.67,General Motor Insurance
North West Leicestershire District Council,31UH,Street Management,Environment Transport,ENOT,FAROL Limited,A041905,04/05/2022,1423672,390.37,Repairs - Parts
North West Leicestershire District Council,31UH,Street Management,Environment Transport,ENOT,Enterprise Rent-A-Car UK Ltd,A046419,04/05/2022,1423673,761.60,Hire Of Transport
North West Leicestershire District Council,31UH,Street Management,Environment Transport,ENOT,Coalville Cleaning Services,A003037,04/05/2022,1423674,446.10,Contract Cleaning
North West Leicestershire District Council,31UH,Planning & Development,Environment Planning Policy,EPP,Clearlead Consulting Ltd,A044888,04/05/2022,1423678,4931.25,Consultants Fees
North West Leicestershire District Council,31UH,Street Management,Environment Transport,ENOT,Snap-On Tools Ltd,A001521,04/05/2022,1423681,324.00,Scheduled Servicing - Labour
North West Leicestershire District Council,31UH,Street Management,Environment Transport,ENOT,S & B Tyres Limited,A034071,04/05/2022,1423682,925.00,Vehicle Parts
North West Leicestershire District Council,31UH,Street Management,Environment Transport,ENOT,Reflec Signs & Graphics Ltd,A025348,04/05/2022,1423683,310.00,Repairs - Parts
North West Leicestershire District Council,31UH,Street Management,Environment Transport,ENOT,George Browns Ltd,A044771,04/05/2022,1423699,332.00,Operational Purchases
North West Leicestershire District Council,31UH,Street Management,Environment Waste Management,ENOWM,Leicestershire County Council,A000950,04/05/2022,1423701,64305.47,Trade Refuse Disposal Costs
North West Leicestershire District Council,31UH,Property Services,Property Facilities Management,PROPFM,Second Element Ltd,A046693,04/05/2022,1423704,815.00,Service Contracts - Premises costs
North West Leicestershire District Council,31UH,Housing Repairs,HRA Housing Repairs & Maintenance,HRAHRM,Second Element Ltd,A046693,18/05/2022,1422717,324.67,Legionella
North West Leicestershire District Council,31UH,Street Management,Environment Parks,ENOP,Teleshore (UK) Ltd,A030449,18/05/2022,1422882,285.00,Operational Purchases
North West Leicestershire District Council,31UH,Street Management,Environment Parks,ENOP,Buxton's Ltd,A029426,18/05/2022,1423733,255.00,Operational Purchases
North West Leicestershire District Council,31UH,Planning & Development,Environment - Development Control,EDC,Jonathan Gaynor Planning and Enforcement Services,A047213,18/05/2022,1423768,1225.00,External Legal Fees & Advice
North West Leicestershire District Council,31UH,Planning & Development,Environment - Development Control,EDC,RAS Town Planning Services,A045293,18/05/2022,1423771,2223.00,External Legal Fees & Advice
North West Leicestershire District Council,31UH,Corporate Director,Corporate Director,CORDI,Richards Design Partnership,A047399,18/05/2022,1423819,17500.00,Contract Payments (Other) Ext
North West Leicestershire District Council,31UH,Environmental Health,Environmental Health & Licensing,EEHL,Animal Care Services Limited,A046488,18/05/2022,1423873,2103.05,Stray Dog Service
North West Leicestershire District Council,31UH,Community Directorate,Community Directorate,CODI,JMS Engineers (Midlands) Limited,A047437,18/05/2022,1423955,6597.36,Contract Payments (Other) Ext
North West Leicestershire District Council,31UH,Housing,HRA Performance & Business Support,HRAPBS,The Housing Ombudsman,A041384,18/05/2022,1424041,19559.20,Subscriptions
North West Leicestershire District Council,31UH,Street Management,Environment Waste Management,ENOWM,Staysafe PPE Ltd,A046581,18/05/2022,1424059,335.75,Protective Clothing
North West Leicestershire District Council,31UH,Housing,HRA Performance & Business Support,HRAPBS,The Ecology Surveyor,A047370,18/05/2022,1424208,250.00,Legal & Professional Services
North West Leicestershire District Council,31UH,Neighbourhoods & Communities,N & C Neighbourhoods,NACN,Helter Skelter Arts Ltd,A043059,18/05/2022,1424214,295.00,Event expenditure
North West Leicestershire District Council,31UH,Housing,HRA Housing Management,HRAHM,James Andrews Recruitment Solutions,A036290,18/05/2022,1424216,1098.88,Agency Staff
North West Leicestershire District Council,31UH,Street Management,Environment Waste Management,ENOWM,Automotive Transport Training Ltd,A046541,18/05/2022,1424287,1320.00,Training Expenses
North West Leicestershire District Council,31UH,Street Management,Environment Waste Management,ENOWM,Automotive Transport Training Ltd,A046541,18/05/2022,1424289,2640.00,Training Expenses
